Cogmind - Beta 15 @@@ ROGUE MODE // 2025.07.20 @ 14:37:40 Player: Plexion Result: Establishing 0b11! Performance ------------- Evolutions (9) 4500 Regions Visited (35) 7000 Robots Destroyed (397) 1985 Value Destroyed (28422) 28422 Prototype IDs (385) 7700 Alien Tech Used (5) 1000 Bonus (60534) 60534 TOTAL SCORE: 111141 Bonus ------- High Alert Combat Kills 1011 Follower Combat Kills 3543 Entered Garrisons 2200 Used RIF Installer 6500 Aligned with FarCom 300 Recovered Sigix Corpse 4000 Destroyed MAIN.C Guards 500 Met MAIN.C 5000 Destroyed MAIN.C Shell 5000 Destroyed MAIN.C 10000 Met Architect 300 Started Test 138-B 500 Destroyed A8 300 Destroyed A6 400 Destroyed A5 500 Destroyed A4 700 Destroyed A3 800 Destroyed A2 1000 Destroyed Architect 15000 Win 3000 Friendly Fire -20 Cogmind --------- Core Integrity 959/1600 Matter 260/300 Energy 411/1140 System Corruption 0% Temperature Cool (12) Movement Hovering (33) Location 0b11 Command Parts ------- > --- POWER (2) -------- Concept Zero-point Core Concept Zero-point Core > --- PROPULSION (7) --- Cooled Linear Gravjet Gravjet Array Concept Combat Aerolev Unit Concept Combat Aerolev Unit (fused) Concept Combat Aerolev Unit Concept Gyrokinetic System (fused) > --- UTILITY (13) ----- Experimental Power Amplifier Concept Antigrav Storage Unit Concept Chromion Battery Advanced Quantum Shading Machine Long-range Terrain Scanner Concept Weapon Articulator Experimental Core Analyzer Concept Reaction Jets Experimental Phase Shifter Heavy Regenerative Plating AEGIS Remote Shield > --- WEAPON (3) ------- Ionic Axe Nanosword Experimental Jetlance (fused) > --- INVENTORY (25) --- Zero-point Reactor Zero-point Reactor Gravjet Array Concept Combat Aerolev Unit Advanced Power Amplifier Experimental Power Amplifier Concept Chromion Battery (800) Concept Chromion Battery (0) Experimental Core Analyzer Femtoactuators Femtoactuators Experimental Actuator Array Experimental Reaction Control System Experimental Phase Shifter Experimental Phase Shifter AEGIS Remote Shield High-powered Transdimensional Reconstructor Concept Disintegration Ray (50) Concept Disintegration Ray (14) Compact HERF Cannon Concept Plasma Driver Sigix Corpse Sigix Corpse Peak State ------------ > --- POWER ------------ Concept Zero-point Core Concept Zero-point Core > --- PROPULSION ------- Cooled Linear Gravjet Gravjet Array Concept Combat Aerolev Unit Concept Combat Aerolev Unit Concept Combat Aerolev Unit Concept Gyrokinetic System > --- UTILITY ---------- Concept Antigrav Storage Unit Concept Chromion Battery Advanced Quantum Shading Machine Experimental Optical Array Concept Weapon Articulator Concept Reaction Jets Concept Cloak Mesh Concept Cloak Mesh Heavy Regenerative Plating Thermal Barrier AEGIS Remote Shield Experimental System Purifier > --- WEAPON ----------- Experimental Jetlance Experimental Jetlance Experimental Jetlance > --- INVENTORY -------- Zero-point Reactor Gravjet Array Gravjet Array Concept Combat Aerolev Unit Concept Chromion Battery Concept Chromion Battery Long-range Terrain Scanner Femtoactuators Femtoactuators Concept Reaction Jets AEGIS Remote Shield Hacking Suite System Shield Transdimensional Reconstructor Subatomic Replicator Concept Disintegration Ray Concept Disintegration Ray Concept Plasma Driver Advanced Remote Datajack [Rating: 286] Favorites ----------- Power Concept Zero-point Core Engine Light Ion Engine Power Core Concept Zero-point Core Reactor Micro Antimatter Reactor Propulsion Light Treads Treads Light Treads Leg Aluminum Leg Wheel Compact Wheel Hover Unit Concept Combat Aerolev Unit Flight Unit Biomechanical Wings Utility Relay Coupler [Sentry] Device Seismic Detector Storage Large Storage Unit Processor Experimental Targeting Computer Hackware Relay Coupler [Sentry] Protection Light Armor Plating Weapon Experimental Jetlance Energy Gun Advanced Beam Rifle Energy Cannon Concept Plasma Driver Ballistic Gun Enhanced Autogun Ballistic Cannon Hardcell Cannon Launcher Mini Smartbomb Launcher Special Weapon Advanced Remote Datajack Slashing Weapon Axe Piercing Weapon Experimental Jetlance Special Melee Weapon Improved Datajack Build | -11 -10 -10 -9 -9 -9 -8 -8 -8 -8 -8 -7 -7 -7 -7 -6 -6 -6 -6 -5 -5 -5 -5 -4 -4 -4 -4 -3 -3 -3 -2 -2 -2 -1 -1 -1 ------- Run | Yrd Mat Min Mat Min Exi Min Mat Gar Mat Gar Fac Gar Fac Gar Fac Gar Fac Gar Fac Gar Fac Gar Fac Gar Fac Gar Res Qua Gar Res Tes Frg Acc Com Ac0 Slots Evolved 18 | . . . 2 . . . 2 . . . 2 . . . 2 . . . 2 . . . 2 . . . 2 . . 2 . . 2 . . Power 1 | . . . . . . . . . . . . . . . . . . . . . . . . . . . . . . . . . 1 . . Propulsion 5 | . . . 1 . . . 1 . . . . . . . . . . . 1 . . . 1 . . . 1 . . . . . . . . Utility 11 | . . . 1 . . . 1 . . . 2 . . . 2 . . . 1 . . . 1 . . . 1 . . 1 . . 1 . . Weapon 1 | . . . . . . . . . . . . . . . . . . . . . . . . . . . . . . 1 . . . . . Parts Attached 325 | 8 5 . 10 3 . 2 7 9 9 14 19 13 9 11 14 5 2 5 12 4 5 11 1 6 1 4 14 2 13 10 9 52 4 14 18 Power 28 | 1 . . 1 2 . . 1 1 1 2 1 1 . 1 2 1 . 1 . . 1 1 . 1 . . 1 . 1 2 1 4 . . . Engine 6 | 1 . . 1 2 . . . 1 1 . . . . . . . . . . . . . . . . . . . . . . . . . . Core 15 | . . . . . . . 1 . . 2 1 1 . 1 2 1 . 1 . . 1 1 . . . . . . . . . 3 . . . Reactor 7 | . . . . . . . . . . . . . . . . . . . . . . . . 1 . . 1 . 1 2 1 1 . . . Propulsion 104 | 2 . . 4 . . 2 3 3 4 5 5 6 4 5 3 . . 2 8 . . . 1 . 1 . 6 1 2 3 3 21 2 2 6 Treads 28 | 2 . . 4 . . 2 3 3 4 5 3 2 . . . . . . . . . . . . . . . . . . . . . . . Leg 2 | . . . . . . . . . . . 2 . . . . . . . . . . . . . . . . . . . . . . . . Wheel 1 | . . . . . . . . . . . . . 1 . . . . . . . . . . . . . . . . . . . . . . Hover 35 | . . . . . . . . . . . . 1 2 . 3 . . 2 1 . . . . . . . . . . . 1 15 2 2 6 Flight 38 | . . . . . . . . . . . . 3 1 5 . . . . 7 . . . 1 . 1 . 6 1 2 3 2 6 . . . Utility 132 | 2 3 . 2 1 . . 2 3 3 4 9 4 2 5 5 2 1 2 3 4 2 8 . 3 . 3 6 1 8 1 4 17 2 11 9 Device 39 | 1 . . 1 . . . 1 2 1 . 3 1 1 . 1 . . . 1 1 . 1 . . . . . . 1 . 1 7 . 8 7 Storage 12 | 1 2 . . . . . . . . . . . . . . . . . . . 1 . . . . . . . . 1 . 7 . . . Processor 12 | . . . . . . . . 1 . . 1 . . . 4 . . . . . . . . . . . 1 . . . . 2 1 1 1 Hackware 49 | . . . . . . . . . . 2 2 1 1 5 . 2 1 2 2 3 1 6 . 3 . 3 4 1 7 . 1 . 1 1 . Protection 20 | . 1 . 1 1 . . 1 . 2 2 3 2 . . . . . . . . . 1 . . . . 1 . . . 2 1 . 1 1 Artifact . | . . . . . . . . . . . . . . . . . . . . . . . . . . . . . . . . . . . . Weapon 61 | 3 2 . 3 . . . 1 2 1 3 4 2 3 . 4 2 1 . 1 . 2 2 . 2 . 1 1 . 2 4 1 10 . 1 3 Energy Gun 9 | 2 . . 2 . . . . 1 . . 1 . . . . . . . . . . . . . . . . . . . . 2 . 1 . Energy Cannon 5 | . . . . . . . . . . . . . . . . 1 . . . . . . . . . . . . . 1 . 2 . . 1 Ballistic Gun 11 | 1 1 . 1 . . . . . 1 1 2 2 . . . . . . . . . . . . . . . . . . 1 1 . . . Ballistic Cannon 5 | . . . . . . . . . . . . . . . . 1 . . . . 1 . . . . 1 . . 1 . . 1 . . . Launcher 4 | . 1 . . . . . 1 . . . . . 1 . . . . . . . . 1 . . . . . . . . . . . . . Special Weapon 9 | . . . . . . . . . . . . . 1 . . . . . 1 . . 1 . 2 . . . . 1 2 . 1 . . . Impact Weapon . | . . . . . . . . . . . . . . . . . . . . . . . . . . . . . . . . . . . . Slashing Weapon 10 | . . . . . . . . 1 . 1 1 . . . 2 . . . . . 1 . . . . . 1 . . 1 . . . . 2 Piercing Weapon 5 | . . . . . . . . . . . . . 1 . 1 . . . . . . . . . . . . . . . . 3 . . . Special Melee Weapon 3 | . . . . . . . . . . 1 . . . . 1 . 1 . . . . . . . . . . . . . . . . . . Unidentified Prototypes 32 | . . . 2 . . . . . . . . . 1 . 1 . . . . . . . . . . . 3 1 . 2 5 16 . . 1 Parts Lost 80 | . . . . . . . 2 3 4 3 7 7 3 13 . 2 . 1 . . 1 1 . . . . . . 5 . . 17 . 3 8 Power 8 | . . . . . . . . . 1 1 . . . 2 . 1 . . . . . . . . . . . . 1 . . 2 . . . Propulsion 28 | . . . . . . . . 1 . 2 3 4 2 5 . . . . . . . . . . . . . . 2 . . 6 . 2 1 Utility 33 | . . . . . . . 2 1 2 . 3 3 1 4 . 1 . 1 . . . 1 . . . . . . 2 . . 6 . 1 5 Weapon 11 | . . . . . . . . 1 1 . 1 . . 2 . . . . . . 1 . . . . . . . . . . 3 . . 2 Highest Loss Streak 5 | . . . . . . . 1 1 3 2 2 3 2 5 . 2 . 1 . . 1 1 . . . . . . 2 . . 5 . 2 2 To Critical Strikes 3 | . . . . . . . . . . . . . . . . . . . . . . . . . . . . . . . . 2 . . 1 Average Backups 12 | 2 5 9 14 15 12 15 13 14 13 14 14 9 4 5 4 4 5 5 4 4 7 9 9 9 10 9 9 9 8 9 9 17 20 21 22 Power . | . 1 1 1 1 1 1 1 1 . . 1 . . . . . . . . . . . . . . . . . . . 1 1 . . 2 Propulsion 2 | 1 2 2 2 3 3 3 2 2 2 1 1 . . . . . 1 3 1 1 1 1 . . . 1 2 2 1 2 1 3 5 3 2 Utility 5 | . . 2 4 5 3 5 5 5 5 8 7 4 3 3 2 2 1 . 1 1 4 6 7 6 6 5 4 2 2 2 2 6 9 10 11 Weapon 3 | . 1 4 7 6 4 5 5 4 4 2 4 4 1 1 2 1 1 1 1 1 1 1 2 1 2 1 2 2 2 1 2 4 3 4 3 Tool/Special . | . . . . . . . . . . . . . . . . . . . . . . . . . . . . . . . . . . . . Unused Backups 62 | 1 . . 6 2 3 2 1 2 2 2 1 4 1 1 1 . 1 . 2 1 . . . . 1 1 . 1 4 1 1 3 . 3 14 Power 3 | . . . . . . . . . . . 1 . . . . . . . . . . . . . . . . . . . . . . . 2 Propulsion 8 | 1 . . 2 . 2 . . . . . . . . . . . . . 1 . . . . . . . . . . 1 1 . . . . Utility 38 | . . . 2 2 1 . 1 2 . 2 . 2 1 1 1 . 1 . 1 1 . . . . 1 1 . 1 3 . . 2 . 3 9 Weapon 11 | . . . 2 . . 2 . . 2 . . 2 . . . . . . . . . . . . . . . . . . . 1 . . 2 Tool/Special 2 | . . . . . . . . . . . . . . . . . . . . . . . . . . . . . 1 . . . . . 1 Average Slot Usage (%) 92 | . 100 100 96 100 100 100 98 99 98 98 93 75 92 80 87 84 86 85 94 99 99 99 94 97 95 93 89 94 94 90 94 84 91 85 92 Engine 2 | . 14 14 11 11 11 11 4 2 9 . . . . . . . . . . . . . . . . . . . . . . . . . . Core 3 | . . . . . . . 4 6 . 8 7 6 7 4 5 5 6 6 5 5 5 5 5 3 . . . . . . . 1 8 8 8 Treads 10 | . 28 28 30 33 33 33 36 35 36 35 22 7 . . . . . . . . . . . . . . . . . . . . . . . Hover 6 | . . . . . . . . . . . . 3 4 . 4 13 13 13 14 . . . . . . . . . . . 1 17 24 24 25 Flight 9 | . . . . . . . . . . . . 7 19 24 16 . . . 10 29 29 29 31 31 27 26 24 28 28 30 28 7 . . . Device 8 | . 13 3 11 9 11 10 13 12 11 7 6 1 6 . . 2 . . 2 4 . . . . . . . . 1 . 3 4 15 23 29 Storage 6 | . 14 14 11 11 11 11 9 9 9 9 7 3 . . . . . . . . 3 5 5 5 5 5 4 4 4 4 4 7 8 8 8 Processor 4 | . . . . . . . . 6 9 4 1 . . . 15 13 11 6 5 5 5 5 5 5 5 5 6 4 4 4 4 6 8 5 5 Hackware 18 | . . . . . . . . . . 10 20 25 29 34 33 35 41 45 43 41 41 36 31 36 36 35 37 41 40 39 38 21 12 4 . Protection 4 | . 1 10 10 12 11 11 12 7 6 4 7 7 7 . . . . . . . . 2 5 2 5 5 1 . . . . 3 4 4 4 Energy Gun 4 | . 14 13 21 22 22 22 18 15 13 2 1 . . . . . . . . . . . . . . . . . . . . . . . . Ballistic Gun 1 | . 14 14 . . . . . . 3 8 8 7 . . . . . . . . . . . . . . . . . . . . . . . Special Weapon 1 | . . . . . . . . . . . . . 3 4 . . . . 4 5 4 2 5 4 5 4 4 4 3 3 3 . . . . Slashing Weapon 1 | . . . . . . . . 2 . 3 1 . 2 . 3 . . . . . 1 4 5 4 5 5 4 4 4 3 4 . . . 2 Piercing Weapon 2 | . . . . . . . . . . . . . 4 6 3 6 6 3 . . . . . . . . . . . . . 6 11 7 7 Peak Build Rating 286 | 7 7 9 19 19 22 24 29 36 38 32 46 46 43 43 63 68 70 71 86 90 90 88 84 94 96 97 122 129 133 159 171 241 274 286 282 Average Rating 105 | 4 7 8 17 18 19 21 27 31 31 28 39 34 37 34 46 64 68 69 80 89 88 83 84 89 95 95 116 127 122 149 165 194 270 260 271 On Entrance 78 | . 7 7 9 18 19 19 23 29 35 25 27 45 36 39 23 63 68 70 71 86 90 88 78 84 94 96 97 120 129 122 159 166 238 271 269 Naked Turns . | . . . . . . . . . . . . . . . . . . . . . . . . . . . . . . . . . . . . Heaviest Build 127 | 12 30 31 35 37 35 37 38 36 37 38 43 43 15 15 14 20 17 18 21 26 31 31 25 32 29 34 36 33 38 37 46 99 111 123 127 Greatest Support 140 | 40 40 40 60 60 60 62 82 82 82 82 88 91 16 16 40 40 40 40 49 31 31 31 38 38 39 39 49 51 51 49 67 114 114 133 140 Greatest Overweight (x) 4 | . . . . . . . . . . . . 4 1 1 . . . . . . . . . . . . . . 1 . 1 2 . . 1 Average Overweight (x) . | . . . . . . . . . . . . . . . . . . . . . . . . . . . . . . . . . . . . Largest Inventory Capacity 25 | 8 15 15 15 15 15 15 15 15 15 15 15 15 5 5 5 5 5 5 5 5 10 10 10 10 10 10 10 10 10 10 10 25 25 25 25 Average Capacity 14 | 7 11 15 15 15 15 15 15 15 15 15 15 10 5 5 5 5 5 5 5 5 8 10 10 10 10 10 10 10 10 10 10 19 25 25 25 Most Carried 25 | 4 8 15 15 15 15 15 15 15 15 15 15 15 5 5 5 5 5 5 5 5 10 10 9 10 10 10 10 10 10 10 10 25 25 25 25 Average Carried 13 | 2 5 11 14 15 13 14 13 14 13 14 14 9 4 4 4 4 4 4 4 4 7 9 9 9 9 9 9 9 9 9 9 19 23 23 24 Final Capacity 25 | 8 15 15 15 15 15 15 15 15 15 15 15 5 5 5 5 5 5 5 5 5 10 10 10 10 10 10 10 10 10 10 10 25 25 25 25 Final Carried 25 | 4 8 15 15 15 15 15 15 15 14 15 15 4 5 5 5 5 5 5 5 5 10 10 9 10 10 10 10 10 9 10 10 25 25 25 24 Class Distribution -------------------- 27% | Botlord-Sprinter 21% | Scavenger-Mutant 12% | Scavenger-Sprinter 11% | Botlord-Mutant 10% | Mutant 8% | Bothacker-Mutant 5% | Sprinter Dominant Class ---------------- Mutant | -10/Materials Mutant | -10/Mines Mutant | -9/Materials Scavenger-Mutant | -9/Mines Scavenger-Mutant | -9/Exiles Scavenger-Mutant | -8/Mines Scavenger-Mutant | -8/Materials Scavenger-Mutant | -8/Garrison Scavenger-Mutant | -8/Materials Bothacker-Mutant | -8/Garrison Bothacker-Mutant | -7/Factory Scavenger-Sprinter | -7/Garrison Bothacker-Mutant | -7/Factory Botlord-Sprinter | -7/Garrison Botlord-Sprinter | -6/Factory Botlord-Mutant | -6/Garrison Botlord-Mutant | -6/Factory Botlord-Mutant | -6/Garrison Botlord-Mutant | -5/Factory Botlord-Sprinter | -5/Garrison Botlord-Sprinter | -5/Factory Botlord-Sprinter | -5/Garrison Botlord-Sprinter | -4/Factory Botlord-Sprinter | -4/Garrison Botlord-Sprinter | -4/Factory Botlord-Sprinter | -4/Garrison Botlord-Sprinter | -3/Research Botlord-Sprinter | -3/Quarantine Botlord-Sprinter | -3/Garrison Botlord-Sprinter | -2/Research Botlord-Sprinter | -2/Testing Botlord-Mutant | -2/Protoforge Botlord-Mutant | -1/Access Sprinter | -1/Command Scavenger-Sprinter | -1/Access_0 Resources | -11 -10 -10 -9 -9 -9 -8 -8 -8 -8 -8 -7 -7 -7 -7 -6 -6 -6 -6 -5 -5 -5 -5 -4 -4 -4 -4 -3 -3 -3 -2 -2 -2 -1 -1 -1 ----------- Run | Yrd Mat Min Mat Min Exi Min Mat Gar Mat Gar Fac Gar Fac Gar Fac Gar Fac Gar Fac Gar Fac Gar Fac Gar Fac Gar Res Qua Gar Res Tes Frg Acc Com Ac0 Matter Collected 12866 | 258 63 131 270 110 . 50 121 184 291 614 700 683 180 299 118 189 . 258 182 642 148 939 . 356 80 313 230 222 619 278 372 2589 102 665 610 Remotely . | . . . . . . . . . . . . . . . . . . . . . . . . . . . . . . . . . . . . Salvage Created 19662 | 24 188 32 566 124 . 242 348 735 665 684 804 756 637 280 225 112 . 50 92 147 . 389 . 192 109 164 80 256 310 256 838 3352 314 2991 3700 Parts 1048 | 4 12 7 36 6 . 15 31 24 37 36 42 37 39 14 8 15 . 3 . 7 . 25 . 16 7 15 2 17 15 8 40 208 12 115 195 Haulers Intercepted 14 | . 1 . 2 . . . . . 1 . . . 4 . 1 . . . 1 . . . . . . . 1 . . . 1 . 2 . . Recyclers Shooed 4 | . . . . 1 . . . . . . . . 1 . . . . . 1 . . . . . . . . . . 1 . . . . . Parts Field Recycled . | . . . . . . . . . . . . . . . . . . . . . . . . . . . . . . . . . . . . Retrieved Matter . | . . . . . . . . . . . . . . . . . . . . . . . . . . . . . . . . . . . . Parts Self-Destructed . | . . . . . . . . . . . . . . . . . . . . . . . . . . . . . . . . . . . . Prevented . | . . . . . . . . . . . . . . . . . . . . . . . . . . . . . . . . . . . . Kills | -11 -10 -10 -9 -9 -9 -8 -8 -8 -8 -8 -7 -7 -7 -7 -6 -6 -6 -6 -5 -5 -5 -5 -4 -4 -4 -4 -3 -3 -3 -2 -2 -2 -1 -1 -1 ------- Run | Yrd Mat Min Mat Min Exi Min Mat Gar Mat Gar Fac Gar Fac Gar Fac Gar Fac Gar Fac Gar Fac Gar Fac Gar Fac Gar Res Qua Gar Res Tes Frg Acc Com Ac0 Combat Hostiles Destroyed 329 | . 8 6 13 5 . 6 12 17 13 19 23 19 5 9 . 6 . 3 . 7 . 17 . 5 1 11 . . 10 3 5 49 . 17 40 Melee 77 | . . . . . . . . . 1 2 . . 3 . . 1 . . . . . . . 1 1 . . . . 3 5 13 . 13 34 Guns 110 | . 4 . 8 1 . 5 8 11 9 14 13 13 . . . . . . . . . . . . . . . . . . . 23 . 1 . Cannons 26 | . . . . . . . . . . . . . . . . 2 . 3 . 7 . 5 . 2 . 1 . . 3 . . 2 . . 1 AOE 98 | . 4 6 5 4 . 1 4 3 2 3 10 6 2 9 . 3 . . . . . 12 . 2 . 10 . . 7 . . 5 . . . Classes Destroyed 22 | 1 3 . 3 2 . . 1 1 . 2 1 1 . . . 1 . . . 1 . . . . . 1 . . . . 1 3 . . . Worker 16 | . . . . 1 . . 1 . 3 . 2 . 1 . . . . . . . . . . . . . . . . 2 . 2 2 2 . Builder 8 | . . . 2 1 . . . . . . 1 . . . . . . . . . . . . . 2 . . . . . 1 1 . . . Tunneler 3 | 1 . . . . . 1 . . . . . . 1 . . . . . . . . . . . . . . . . . . . . . . Hauler 14 | . 1 . 2 . . . . . 1 . . . 4 . 1 . . . 1 . . . . . . . 1 . . . 1 . 2 . . Recycler 11 | . . . . 1 . . . . . . . . 3 . 1 . . . . . . . . . . . . 2 . . 2 . 1 1 . Operator 5 | . . . . . . . . . . . 1 . . . . . . . . . . . . . . . . 2 . . 1 . . 1 . Watcher 5 | . . . . . . . 1 . . . 1 . . . . . . . . . . . . . . . . . . . 1 . . 2 . Swarmer 90 | . 6 6 4 5 . 3 8 2 2 7 7 6 2 7 . . . . . 2 . 7 . . . 8 . . 6 . . . . 2 . Cutter 8 | . . . . . . . . . . . . . . . . 4 . . . . . . . 2 . . . . 1 1 . . . . . Saboteur 2 | . . . . . . . . . . . . . . . . . . . . . . . . . . 2 . . . . . . . . . Grunt 76 | . 2 . 5 . . 3 3 11 8 4 12 8 . . . 1 . . . 2 . 6 . . . . . . 4 . 1 . . 6 . Brawler 4 | . . . 1 . . . . 1 1 1 . . . . . . . . . . . . . . . . . . . . . . . . . Duelist 4 | . . . . . . . . 1 . . 1 1 . . . . . . . 1 . . . . . . . . . . . . . . . Protector 1 | . . . . . . . . . . . . . . . . . . . . 1 . . . . . . . . . . . . . . . Researcher 4 | . . . . . . . . . . . . . . . . . . . . . . . . . . . . . . . 1 3 . . . Sentry 26 | . . . 3 . . . 1 2 2 1 1 3 . . . . . . . . . . . . . . . . . 2 . 11 . . . Specialist 1 | . . . . . . . . . . . . 1 . . . . . . . . . . . . . . . . . . . . . . . Hunter 7 | . . . . . . . . . . 1 . . . . . . . . . 1 . . . 1 1 1 . . . . . 2 . . . Programmer 45 | . . . . . . . . . . 5 2 . 3 2 . 1 . 3 . . . 4 . 2 . . . . . . 4 16 . 3 . M Guard 2 | . . . . . . . . . . . . . . . . . . . . . . . . . . . . . . . . . . 2 . Enhanced Grunt 27 | . . . . . . . . . . . . . . . . . . . . . . . . . . . . . . . . . . . 27 Enhanced Hunter 7 | . . . . . . . . . . . . . . . . . . . . . . . . . . . . . . . . . . . 7 Decapitator 7 | . . . . . . . . . . . . . . . . . . . . . . . . . . . . . . . . 7 . . . Immortal 4 | . . . . . . . . . . . . . . . . . . . . . . . . . . . . . . . . 4 . . . Combat Programmer 2 | . . . . . . . . . . . . . . . . . . . . . . . . . . . . . . . . . . 2 . Alpha 7 2 | . . . . . . . . . . . . . . . . . . . . . . . . . . . . . . . . 2 . . . V-Series 8 | . . . . . . . . . . . . . . . . . . . . . . . . . . . . . . . . 8 . . . Tinkerer 1 | . . . . . . . . . . . . . . . . . . . . . . . . . . . . . . . . 1 . . . Best Kill Streak 19 | 1 6 3 6 5 . 4 4 5 4 4 19 10 4 4 1 6 . 2 1 2 . 6 . 4 2 8 1 1 4 3 2 4 3 6 4 Combat Bots Only 16 | . 6 3 5 4 . 3 4 5 2 4 16 10 2 4 . 6 . 2 . 2 . 6 . 4 1 8 . . 4 3 1 4 . 6 4 Max Kills in Single Turn 4 | 1 3 2 3 2 . 1 4 2 2 3 3 3 2 3 1 1 . 1 1 1 . 2 . 2 1 3 1 1 3 1 1 2 1 1 2 Gunslinging 1 | . . . . . . . . . . 1 . 1 . . . . . . . . . . . . . . . . . . . . . . . Exploded 4 | . 3 2 2 2 . 1 4 2 1 3 2 3 2 3 . 1 . . . . . 2 . 2 . 3 . . 3 . . 2 . . . Melee 2 | . . . . . . . . . 1 1 . . 1 . . 1 . . . . . . . 1 1 . . . . 1 1 1 . 1 2 Uniques/NPCs Destroyed 8 | . . . . . . . . . . . . . . . . . . . . . . . . . . . . . . . . . . 2 6 MAIN.C Shell (-1/Command) MAIN.C (-1/Command) A8 (-1/Access_0) A6 (-1/Access_0) A5 (-1/Access_0) A2 (-1/Access_0) Architect (-1/Access_0) A3 (-1/Access_0) Combat | -11 -10 -10 -9 -9 -9 -8 -8 -8 -8 -8 -7 -7 -7 -7 -6 -6 -6 -6 -5 -5 -5 -5 -4 -4 -4 -4 -3 -3 -3 -2 -2 -2 -1 -1 -1 -------- Run | Yrd Mat Min Mat Min Exi Min Mat Gar Mat Gar Fac Gar Fac Gar Fac Gar Fac Gar Fac Gar Fac Gar Fac Gar Fac Gar Res Qua Gar Res Tes Frg Acc Com Ac0 Hostile Shots Fired 2098 | . 18 10 45 17 . 20 41 86 62 94 134 210 22 65 4 34 1 19 4 19 . 31 . 10 2 16 2 4 54 14 25 251 20 133 631 Missed 955 | . 4 5 12 5 . 4 9 25 14 20 42 77 10 24 2 16 1 7 3 5 . 13 . 5 . 8 1 3 33 5 5 74 12 58 453 Hits 1143 | . 14 5 33 12 . 16 32 61 48 74 92 133 12 41 2 18 . 12 1 14 . 18 . 5 2 8 1 1 21 9 20 177 8 75 178 Melee 32 | . . . 1 . . . . 3 . . 6 . . . . 4 . . . . . . . . . . . . 1 3 . 14 . . . Projectile 1111 | . 14 5 32 12 . 16 32 58 48 74 86 133 12 41 2 14 . 12 1 14 . 18 . 5 2 8 1 1 20 6 20 163 8 75 178 AOE 13 | . . . . . . . . . . . . . . . . 4 . . . 1 . . . 1 . . . . . 1 . 5 . . 1 Critical Strikes 83 | . . . . 1 . 1 1 3 5 2 4 1 . 4 . 2 . . . . . 1 . 1 . . . . . 2 2 20 . 4 29 Actively Blocked 3 | . . . . . . . . . . . . . . . . . . . . . . . . . . . . . . . . . . . 3 Part Disruptions 18 | . . . . . . . . . . . 1 . . 1 . . . . . . . . . . . . . . . . 1 3 . 6 6 Actively Blocked 2 | . . . . . . . . . . . . . . . . . . . . . . . . . . . . . . . . . . . 2 Damage Taken 21272 | . 147 42 411 111 . 175 382 962 856 971 1358 1622 202 579 56 409 . 180 21 303 76 299 . 172 38 143 27 25 573 353 446 5522 131 1450 3230 Core 2455 | . 46 7 14 24 . 19 49 109 84 108 149 131 18 187 . 90 . 29 21 71 . 71 . 78 . 41 . . 78 27 72 461 17 153 301 Absorbed by Shields 4156 | . . . . . . . . 55 . 85 . . . 68 . 53 . . . 9 . 21 . . . . . . . . . 93 . 1050 2722 Redirected to Shielding 147 | . . . . . . . . . . . . . . . . . . . . . . . . . . . . . . . . . . . 147 Ignored by Resistances 919 | . . . . . . . . . . . . . . . . . . . . . . . . . . . . . . . . 39 19 338 523 Regen/Repaired (Parts) 4636 | . . . . . . . . . 83 . . . . . . . . . . . . . 3 . . . . . . 185 422 1694 301 709 1239 Core Remaining (%) 72 | 100 . 78 . . . 85 . . . 36 . . . 30 . . . 86 . . . 83 . . . 89 . . 94 . . 61 . . 59 Volleys Fired 923 | 2 16 6 28 9 1 12 19 59 40 49 48 59 2 21 . 13 . 15 24 90 5 55 1 29 7 22 12 3 40 10 16 144 5 27 34 Largest 2 | 2 2 1 2 2 2 2 2 2 2 2 2 2 1 1 . 1 . 1 1 1 1 1 1 1 1 1 1 1 1 1 1 1 1 1 1 Hottest 140 | 70 70 30 122 122 122 122 122 122 122 86 105 56 30 30 . 90 . 55 55 55 7 80 7 80 10 80 10 10 80 120 120 140 140 140 140 Shots Fired 1229 | 4 30 6 51 15 2 24 37 114 76 98 87 113 2 21 . 13 . 15 24 90 5 55 1 29 7 22 12 3 40 10 16 141 5 27 34 Gun 739 | 4 28 . 46 12 2 24 36 110 72 97 77 109 . . . . . . . . . . . . . . . . . . 1 95 . 14 12 Cannon 211 | . . . . . . . . . . . . . . . . 8 . 15 23 50 . 26 . 7 . 3 . . 8 1 8 31 4 5 22 Launcher 98 | . 2 6 5 3 . . 1 4 4 1 10 4 1 14 . 5 . . . . . 16 . 1 . 6 . . 8 3 . 4 . . . Special 181 | . . . . . . . . . . . . . 1 7 . . . . 1 40 5 13 1 21 7 13 12 3 24 6 7 11 1 8 . Kinetic 488 | 2 14 . . . . . . . 18 75 62 109 . . . 6 . 15 23 50 . 26 . 7 . 3 . . 8 . 1 69 . . . Thermal 407 | 2 14 . 46 12 2 24 36 110 54 22 15 . . . . 2 . . . . . . . . . . . . . 1 8 31 4 5 19 Explosive 98 | . 2 6 5 3 . . 1 4 4 1 10 4 1 14 . 5 . . . . . 16 . 1 . 6 . . 8 3 . 4 . . . Electromagnetic 19 | . . . . . . . . . . . . . . . . . . . . . . . . . . . . . . . . 9 . 7 3 Entropic 36 | . . . . . . . . . . . . . . . . . . . . . . . . . . . . . . . . 17 . 7 12 Robot Hit Streak 23 | 1 6 1 7 4 1 4 6 23 12 10 13 12 1 5 . 5 . 15 17 23 18 21 4 20 10 9 17 2 21 4 6 15 11 12 23 Robot Miss Streak 7 | 1 2 1 2 2 1 2 3 7 2 3 4 4 . 1 . 1 . . 1 3 . 1 . 1 . 1 1 1 2 1 . 4 . 2 1 Penetration Max 1 | . . . . . . . . . . . . 1 . . . . . . . . . 1 . . . . . . . . . 1 . 1 1 Secondary Targets 14 | . 1 . . . . . 2 2 2 2 2 3 . . . . . . . . . . . . . . . . . . . . . . . Max Gunslinging Chain 1 | . 1 . . . . . 1 1 1 1 1 1 . . . . . . . . . . . . . . . . . . . . . . . Shots Hit Robots 1331 | 2 16 1 31 8 1 13 21 70 53 77 57 71 25 19 13 12 4 11 7 64 5 25 1 24 12 9 16 8 32 12 24 149 6 139 293 Core Hits 667 | 1 12 8 19 11 . 10 18 25 23 25 60 39 17 22 1 8 . 3 2 12 . 28 . 7 3 12 1 2 13 7 9 90 4 45 130 Critical Kills 36 | . . . . . . . . . . . . 1 . . . . . . . . . . . . . . . . . . 1 27 . 3 4 Critical Parts Destroyed 36 | . 1 . . . . . . . . . . 1 . . . . . . . . . . . . . . . . . . . 34 . . . Critical Strikes 344 | . 1 . 4 3 . 1 4 13 . 1 . 2 4 2 1 . . 1 1 3 . 1 . 1 1 . . . . . 3 93 2 62 140 Burn 26 | . . . 4 3 . 1 4 13 . 1 . . . . . . . . . . . . . . . . . . . . . . . . . Meltdown 10 | . . . . . . . . . . . . . . . . . . . . . . . . . . . . . . . . 3 . 3 4 Destroy 75 | . 1 . . . . . . . . . . 2 . . . . . . . . . . . . . . . . . . 1 71 . . . Blast 6 | . . . . . . . . . . . . . . . . . . 1 1 3 . 1 . . . . . . . . . . . . . Sever 8 | . . . . . . . . . . . . . 1 . 1 . . . . . . . . 1 1 . . . . . 2 . . . 2 Impale 219 | . . . . . . . . . . . . . 3 2 . . . . . . . . . . . . . . . . . 19 2 59 134 Melee Attacks 889 | . . . . . . . . 10 . 35 7 10 34 11 26 20 5 21 . . 1 17 . 17 12 14 8 20 8 19 39 74 39 135 307 Impact . | . . . . . . . . . . . . . . . . . . . . . . . . . . . . . . . . . . . . Slashing 265 | . . . . . . . . 10 . 29 2 10 12 . 13 . . . . . 1 17 . 17 12 14 8 20 8 19 39 23 . . 11 Piercing 601 | . . . . . . . . . . . . . 22 11 12 15 . 20 . . . . . . . . . . . . . 51 39 135 296 Sneak Attacks 66 | . . . . . . . . . . 4 3 . 9 . 4 2 2 1 . . . . . . 5 . 1 4 1 6 7 9 5 3 . Combat Hostiles 17 | . . . . . . . . . . 4 . . 1 . . . . 1 . . . . . . 2 . . . . 5 2 2 . . . Follow-up Attacks 92 | . . . . . . . . . . . . . . . 2 . . . . . . . . . . . . . . . . 6 . 21 63 Damage Inflicted 60483 | 26 401 313 924 453 20 372 675 1876 1263 1797 2467 2045 1247 1195 495 528 . 499 216 1355 . 2691 . 547 371 984 309 574 1688 1260 2249 7001 554 8414 15674 Guns 10700 | 24 184 . 686 148 20 290 498 1472 1098 1302 1152 1493 . . . . . . . . . . . . . . . . . . 7 1649 . 423 254 Cannons 6060 | . . . . . . . . . . . . . . . . 100 . 499 216 1355 . 827 . 197 . 26 . . 312 . . 1085 . 415 1028 Explosions 10242 | . 217 310 238 300 . 78 177 404 154 151 1310 552 133 872 . 382 . . . . . 1864 . 244 . 958 . . 1188 85 . 625 . . . Melee 33446 | . . . . . . . . . . 339 . . 1114 323 495 46 . . . . . . . 106 371 . 309 574 188 1175 2242 3642 554 7576 14392 Ramming 35 | 2 . 3 . 5 . 4 . . 11 5 5 . . . . . . . . . . . . . . . . . . . . . . . . Kinetic 7957 | . 58 . . . . . . . 204 961 798 1493 . . . 30 . 499 216 1355 . 827 . 197 . 26 . . 312 . 7 974 . . . Thermal 7422 | 24 126 . 686 148 20 368 498 1472 894 341 354 . . . . 70 . . . . . . . . . . . . . . . 1085 . 415 921 Explosive 10022 | . 217 310 238 300 . . 177 404 154 151 1168 552 133 872 . 382 . . . . . 1864 . 244 . 958 . . 1188 85 . 625 . . . Electromagnetic 580 | . . . . . . . . . . . 142 . . . . . . . . . . . . . . . . . . . . 210 . 121 107 Impact . | . . . . . . . . . . . . . . . . . . . . . . . . . . . . . . . . . . . . Slashing 8018 | . . . . . . . . . . 339 . . 498 . 372 . . . . . . . . 106 371 . 309 574 188 1175 2242 1464 . . 380 Piercing 25428 | . . . . . . . . . . . . . 616 323 123 46 . . . . . . . . . . . . . . . 2178 554 7576 14012 Entropic 1021 | . . . . . . . . . . . . . . . . . . . . . . . . . . . . . . . . 465 . 302 254 Highest Corruption 38 | . . . . . . . . . . 4 3 3 7 9 3 4 4 5 . . . 1 . . 2 3 . 1 1 . 2 38 . 4 . Average Corruption 8 | . . . . . . . . . . 3 2 3 4 8 2 3 4 4 . . . 1 . . 2 2 . 1 1 . 1 23 . 3 . Corruption Purged 4 | . . . . . . . . . . . . . . . . . . . . . . . . . . . . . . . . . . 4 . Corruption Blocked . | . . . . . . . . . . . . . . . . . . . . . . . . . . . . . . . . . . . . Effects 257 | . . . . . . . . . . 15 10 22 11 12 7 9 1 14 . . . 4 . . 2 13 . 1 2 . 2 131 . 1 . Message Errors 55 | . . . . . . . . . . 5 3 6 3 2 2 3 . 4 . . . 1 . . . 2 . . . . . 24 . . . Matter Fused 48 | . . . . . . . . . . . 1 5 2 2 1 1 . 4 . . . 2 . . . 3 . . 1 . . 25 . 1 . Heat Flow Errors 34 | . . . . . . . . . . 3 . 4 3 2 1 2 . . . . . . . . . 1 . 1 . . 1 16 . . . Energy Discharges 40 | . . . . . . . . . . 4 . 3 1 2 . 2 . 4 . . . . . . . 5 . . . . . 19 . . . Parts Rejected 3 | . . . . . . . . . . . . 1 . . . . . . . . . . . . . . . . . . . 2 . . . Parts Fused 6 | . . . . . . . . . . . 1 . 1 . . . . . . . . . . . . . . . . . 1 3 . . . Data Loss (minor) 33 | . . . . . . . . . . 2 . 2 1 3 3 1 1 . . . . 1 . . 2 2 . . 1 . . 14 . . . Data Loss (major) 11 | . . . . . . . . . . . 1 . . 1 . . . 1 . . . . . . . . . . . . . 8 . . . Misfires 4 | . . . . . . . . . . 1 2 . . . . . . . . . . . . . . . . . . . . 1 . . . Alerts 5 | . . . . . . . . . . . 1 1 . . . . . 1 . . . . . . . . . . . . . 2 . . . Misdirections 13 | . . . . . . . . . . . . . . . . . . . . . . . . . . . . . . . . 13 . . . Weapon Failures 5 | . . . . . . . . . . . 1 . . . . . . . . . . . . . . . . . . . . 4 . . . Overload Shots 1 | . . . . . . . . . . . . . . . . 1 . . . . . . . . . . . . . . . . . . . Overflow Damage 4133 | . 18 27 . . . . . 6 9 104 4 . 121 62 50 15 . 23 5 42 . 131 . 34 36 52 . 307 130 161 539 598 83 801 775 Projectiles 166 | . . . . . . . . . . . . . . . . . . 23 5 42 . 31 . 34 . . . . 4 . . . . . 27 Explosions 382 | . 18 27 . . . . . 6 9 9 4 . . 22 . 9 . . . . . 100 . . . 52 . . 126 . . . . . . Melee 3585 | . . . . . . . . . . 95 . . 121 40 50 6 . . . . . . . . 36 . . 307 . 161 539 598 83 801 748 Knockbacks 17 | . . . . . . . . . . . . . . . . . . 3 1 3 . 8 . 1 . . . . 1 . . . . . . Impact . | . . . . . . . . . . . . . . . . . . . . . . . . . . . . . . . . . . . . Kinetic 15 | . . . . . . . . . . . . . . . . . . 3 1 3 . 6 . 1 . . . . 1 . . . . . . Secondary 2 | . . . . . . . . . . . . . . . . . . . . . . 2 . . . . . . . . . . . . . Self-Inflicted Damage 328 | . . . . . . . 21 . 41 . 48 . . 25 . 127 . . . . . . . . . . . . . . . 66 . . . Shots 9 | . . . . . . . 1 . 1 . 1 . . 1 . 4 . . . . . . . . . . . . . . . 1 . . . Rammed 6 | 1 . 1 . 1 . 1 . . . 1 1 . . . . . . . . . . . . . . . . . . . . . . . . Targets Rammed 7 | 1 . 1 . 1 . 1 . . 1 1 1 . . . . . . . . . . . . . . . . . . . . . . . . Kicked . | . . . . . . . . . . . . . . . . . . . . . . . . . . . . . . . . . . . . Crushed 1 | . . . . . . . . . 1 . . . . . . . . . . . . . . . . . . . . . . . . . . Highest Temperature 358 | 40 205 . 120 120 63 292 315 216 202 265 292 155 257 241 170 267 . 12 6 . . 61 . 20 2 263 . 112 91 54 283 237 94 358 48 Average Temperature 57 | 20 86 . 26 44 42 95 104 61 45 76 76 36 103 82 91 81 . 4 3 . . 28 . 15 2 71 . 64 32 17 88 71 25 87 16 Received Heat Transfer 2787 | . 45 . 99 27 . 63 117 441 423 192 330 453 . 148 12 20 . . . 48 . . . 30 21 24 9 . 60 18 . 93 18 66 30 Effects 4 | . . . . . . 1 2 . . . . . . . . . . . . . . . . . . . . . . . . . . 1 . Shutdowns 1 | . . . . . . . . . . . . . . . . . . . . . . . . . . . . . . . . . . 1 . Energy Bleed 1 | . . . . . . 1 . . . . . . . . . . . . . . . . . . . . . . . . . . . . . Interference 2 | . . . . . . . 2 . . . . . . . . . . . . . . . . . . . . . . . . . . . . Siege Activations . | . . . . . . . . . . . . . . . . . . . . . . . . . . . . . . . . . . . . Martial Activations . | . . . . . . . . . . . . . . . . . . . . . . . . . . . . . . . . . . . . Shielding Activations . | . . . . . . . . . . . . . . . . . . . . . . . . . . . . . . . . . . . . Robots Disrupted 1 | . . . . . . . . . . . . . . . . . . . . . . . . . . . . . . . . 1 . . . Combat Hostiles 1 | . . . . . . . . . . . . . . . . . . . . . . . . . . . . . . . . 1 . . . Robots Corrupted 4 | . . . . . . . . . . . . . . . . . . . . . . . . . . . . . . . . 2 . 1 1 Combat Hostiles 4 | . . . . . . . . . . . . . . . . . . . . . . . . . . . . . . . . 2 . 1 1 Parts Fried 12 | . . . . . . . . . . . . . . . . . . . . . . . . . . . . . . . . 3 . 2 7 Impact Corruptions 1 | . . . . . . . . . . . . . . . . . . . . . . 1 . . . . . . . . . . . . . Robots Melted 14 | . . . . . . . . 3 1 . . . . . . . . . . . . . . . . . . . . . . 3 . 3 4 Combat Hostiles 14 | . . . . . . . . 3 1 . . . . . . . . . . . . . . . . . . . . . . 3 . 3 4 Parts Melted 44 | . . . 7 1 . . 1 12 6 3 4 . . . . . . . . . . . . . . 2 . . . . . 3 . 4 1 Heat Transferred 12412 | 74 370 . 1480 481 37 692 1184 3515 1554 592 750 . . . . 50 . . . . . . . . . . . . . . . 633 . 250 750 Parts Sabotaged . | . . . . . . . . . . . . . . . . . . . . . . . . . . . . . . . . . . . . Parts Stolen . | . . . . . . . . . . . . . . . . . . . . . . . . . . . . . . . . . . . . Parts Stripped . | . . . . . . . . . . . . . . . . . . . . . . . . . . . . . . . . . . . . Power Chain Reactions . | . . . . . . . . . . . . . . . . . . . . . . . . . . . . . . . . . . . . Alert | -11 -10 -10 -9 -9 -9 -8 -8 -8 -8 -8 -7 -7 -7 -7 -6 -6 -6 -6 -5 -5 -5 -5 -4 -4 -4 -4 -3 -3 -3 -2 -2 -2 -1 -1 -1 ------- Run | Yrd Mat Min Mat Min Exi Min Mat Gar Mat Gar Fac Gar Fac Gar Fac Gar Fac Gar Fac Gar Fac Gar Fac Gar Fac Gar Res Qua Gar Res Tes Frg Acc Com Ac0 Maximum Alert Level 4 | . . . 1 . . . 1 2 2 3 2 3 2 2 1 1 . 1 . 1 1 3 2 4 2 4 3 1 2 1 1 1 . . . Low Security (%) 53 | 100 100 100 94 100 . 100 82 16 35 23 20 7 . . 62 43 100 25 100 65 94 15 . . . . . 96 7 . 99 68 100 100 . Level 1 20 | . . . 5 . . . 17 33 23 32 51 14 51 45 37 56 . 74 . 34 5 22 . 8 . . . 3 24 100 . 31 . . . Level 2 15 | . . . . . . . . 50 40 34 28 36 48 54 . . . . . . . 17 100 20 100 9 21 . 67 . . . . . . Level 3 7 | . . . . . . . . . . 9 . 41 . . . . . . . . . 45 . 38 . 18 78 . . . . . . . . Level 4 2 | . . . . . . . . . . . . . . . . . . . . . . . . 33 . 71 . . . . . . . . . Level 5 . | . . . . . . . . . . . . . . . . . . . . . . . . . . . . . . . . . . . . High Security . | . . . . . . . . . . . . . . . . . . . . . . . . . . . . . . . . . . . . Max Security . | . . . . . . . . . . . . . . . . . . . . . . . . . . . . . . . . . . . . Peak Influence 1545 | 5 149 135 215 110 . 103 218 633 487 750 530 854 455 586 281 295 154 287 150 396 207 955 501 1169 615 1545 864 327 564 317 208 263 140 119 . Initial 864 | . . 54 6 40 . . 37 130 308 53 393 170 448 252 281 81 154 93 150 18 207 8 501 336 613 430 864 322 75 317 177 2 140 40 . Average 292 | . 17 39 88 16 . 14 101 410 271 379 308 571 394 429 187 192 148 213 55 175 119 571 494 861 572 1258 759 143 436 290 104 111 67 54 . Influence Increases 13775 | 5 233 162 375 140 . 186 350 593 448 787 855 774 297 454 58 284 . 304 88 458 41 1077 . 933 222 1258 200 109 819 128 224 1074 178 483 178 Destroy 0b10 Robot/C 6415 | . 160 120 260 100 . 120 240 380 260 400 520 380 100 210 . 150 . 105 . 210 15 450 . 315 45 459 96 24 288 36 72 636 12 252 . Destroy 0b10 Robot/NC 319 | 5 5 . 20 15 . 5 10 . 20 . 25 . 45 10 8 . . . 4 4 . . . . 32 . 12 9 . 6 18 15 15 36 . Destroy Leader 840 | . 32 20 64 10 . 20 42 30 72 30 92 20 48 30 2 16 . 16 2 8 . 40 . 24 18 32 26 . 30 12 16 48 4 36 . Allied During Kill 1062 | . . . . . . . . 10 . 3 11 1 . 7 . 5 . 11 . 39 10 99 . 229 63 424 30 . 81 . . 12 . 27 . Successful Hack 373 | . 27 . 12 . . . 11 . 34 30 46 . . . . . . 11 14 9 14 8 . 11 34 9 2 31 . 4 32 . 21 13 . Select Force Hacks 30 | . . . . . . . . . . . . . 30 . . . . . . . . . . . . . . . . . . . . . . Disable Machine 711 | . . . 15 . . 30 45 . 30 . 105 . 30 . . . . . . 12 . 12 . . 12 24 9 27 9 . 54 171 9 27 90 Anti-Garrison Action 1730 | . . . . . . . . 100 . 250 . 200 . 88 . 38 . 114 . 152 . 228 . 266 . 174 . . 120 . . . . . . Destroy Structure 1326 | . 9 22 4 15 . 11 2 28 32 59 41 38 14 58 12 63 . 23 32 24 2 192 . 64 18 115 16 18 111 52 32 66 54 11 88 Partial Spotted 135 | . . . . . . . . . . . . 15 30 12 . . . 12 24 . . 12 . 12 . . 9 . . . . 9 . . . Lose Combat Pursuer 834 | . . . . . . . . 45 . 15 15 120 . 39 36 12 . 12 12 . . 36 . 12 . 21 . . 180 18 . 117 63 81 . Influence Decreases 13677 | 5 92 286 286 246 . 91 245 160 999 119 1361 164 790 279 477 106 161 151 348 89 425 134 474 245 776 335 1164 582 356 377 534 845 348 406 221 Entered New Map 5343 | . . 87 11 66 . . 58 70 325 29 357 74 406 109 255 36 141 41 137 9 189 4 454 145 556 185 674 252 26 247 138 3 94 24 141 Time Decay 5034 | 5 92 199 275 180 . 91 167 . 334 . 464 . 334 . 222 . 20 . 211 . 206 . 20 . 190 . 230 160 . 120 386 632 234 262 . Lost Part 800 | . . . . . . . 20 30 40 30 70 70 30 130 . 20 . 10 . . 10 10 . . . . . . 50 . . 170 . 30 80 Lost Ally 1600 | . . . . . . . . 60 . 60 20 20 20 40 . 50 . 100 . 80 20 120 . 100 30 150 260 20 280 10 10 40 20 90 . Purge Threat 900 | . . . . . . . . . 300 . 450 . . . . . . . . . . . . . . . . 150 . . . . . . . Squads Dispatched 50 | . . . 2 . . . 1 . 2 . 6 . 5 . 4 . . . 2 . 2 . . . 2 . 3 2 . 2 4 7 4 2 . Investigation 13 | . . . 1 . . . . . 2 . . . 1 . 2 . . . 1 . . . . . 1 . 1 . . . 1 . 3 . . Extermination 20 | . . . . . . . . . . . 2 . 2 . . . . . 1 . 1 . . . 1 . 1 1 . . 3 5 1 2 . Reinforcement 17 | . . . 1 . . . 1 . . . 4 . 2 . 2 . . . . . 1 . . . . . 1 1 . 2 . 2 . . . Assault . | . . . . . . . . . . . . . . . . . . . . . . . . . . . . . . . . . . . . Garrison . | . . . . . . . . . . . . . . . . . . . . . . . . . . . . . . . . . . . . Intercept . | . . . . . . . . . . . . . . . . . . . . . . . . . . . . . . . . . . . . Searches Triggered . | . . . . . . . . . . . . . . . . . . . . . . . . . . . . . . . . . . . . Construction Impeded 1 | . . . . . . . . . . . 1 . . . . . . . . . . . . . . . . . . . . . . . . Haulers Reinforced 3 | . . . . . . . . . . . . . 1 . 1 . . . . . . . . . . . 1 . . . . . . . . Active Scanning Responses . | . . . . . . . . . . . . . . . . . . . . . . . . . . . . . . . . . . . . Cargo Convoy Interrupts . | . . . . . . . . . . . . . . . . . . . . . . . . . . . . . . . . . . . . Stealth | -11 -10 -10 -9 -9 -9 -8 -8 -8 -8 -8 -7 -7 -7 -7 -6 -6 -6 -6 -5 -5 -5 -5 -4 -4 -4 -4 -3 -3 -3 -2 -2 -2 -1 -1 -1 --------- Run | Yrd Mat Min Mat Min Exi Min Mat Gar Mat Gar Fac Gar Fac Gar Fac Gar Fac Gar Fac Gar Fac Gar Fac Gar Fac Gar Res Qua Gar Res Tes Frg Acc Com Ac0 Distress Signals 29 | . 1 . . . . . 2 . 2 . . . . . 1 . . . . . . . . . . . . 2 . 1 . . . 20 . Communications Jammed . | . . . . . . . . . . . . . . . . . . . . . . . . . . . . . . . . . . . . Distress Signals . | . . . . . . . . . . . . . . . . . . . . . . . . . . . . . . . . . . . . Times Spotted 609 | . 10 6 18 6 . 5 20 21 20 24 31 26 9 25 4 12 2 4 9 23 1 26 . 21 7 23 14 7 48 5 12 72 6 31 61 Peak Tracking Total 19 | . 7 3 4 4 2 3 6 4 4 4 7 11 2 8 2 6 2 3 3 4 . 5 . 5 4 7 7 3 19 2 2 14 7 7 7 Tactical Retreats 47 | . . . . . . . . 2 . 1 1 4 . 3 3 1 . 1 1 . . 2 . 1 . 2 . . 7 2 . 9 2 5 . Traps | -11 -10 -10 -9 -9 -9 -8 -8 -8 -8 -8 -7 -7 -7 -7 -6 -6 -6 -6 -5 -5 -5 -5 -4 -4 -4 -4 -3 -3 -3 -2 -2 -2 -1 -1 -1 ------- Run | Yrd Mat Min Mat Min Exi Min Mat Gar Mat Gar Fac Gar Fac Gar Fac Gar Fac Gar Fac Gar Fac Gar Fac Gar Fac Gar Res Qua Gar Res Tes Frg Acc Com Ac0 Traps Triggered 69 | . . . 1 . . . . 2 3 2 3 2 2 6 2 3 . 5 . 4 1 5 . 5 1 1 . . 1 . . 18 1 1 . Indirectly . | . . . . . . . . . . . . . . . . . . . . . . . . . . . . . . . . . . . . Trap Hack Attempts 9 | . . . . . . . . . . . 9 . . . . . . . . . . . . . . . . . . . . . . . . Triggered . | . . . . . . . . . . . . . . . . . . . . . . . . . . . . . . . . . . . . Disarmed 7 | . . . . . . . . . . . 1 . . . . . . . . . . . . . 6 . . . . . . . . . . Reprogrammed . | . . . . . . . . . . . . . . . . . . . . . . . . . . . . . . . . . . . . Reused . | . . . . . . . . . . . . . . . . . . . . . . . . . . . . . . . . . . . . Traps Extracted . | . . . . . . . . . . . . . . . . . . . . . . . . . . . . . . . . . . . . Installed . | . . . . . . . . . . . . . . . . . . . . . . . . . . . . . . . . . . . . Triggered . | . . . . . . . . . . . . . . . . . . . . . . . . . . . . . . . . . . . . Most Traps Carried 3 | . . 3 3 . . . . . . . . . . . . . . . . . . . . . . . . . . . . . . . . Machines | -11 -10 -10 -9 -9 -9 -8 -8 -8 -8 -8 -7 -7 -7 -7 -6 -6 -6 -6 -5 -5 -5 -5 -4 -4 -4 -4 -3 -3 -3 -2 -2 -2 -1 -1 -1 ---------- Run | Yrd Mat Min Mat Min Exi Min Mat Gar Mat Gar Fac Gar Fac Gar Fac Gar Fac Gar Fac Gar Fac Gar Fac Gar Fac Gar Res Qua Gar Res Tes Frg Acc Com Ac0 Machines Disabled 113 | . . . 1 . . 2 3 2 2 5 7 2 2 2 . 1 . 3 . 6 . 6 . 7 1 8 1 3 5 . 7 23 1 3 10 Max in Single Turn 3 | . . . 1 . . 2 1 1 1 1 3 1 1 1 . 1 . 1 . 1 . 1 . 2 . 1 . 1 1 . 1 1 1 1 1 Garrison Access 11 | . . . . . . . . . . . . . 1 . 2 . . . 1 . . . . . . . 2 . . 1 1 1 2 . . Garrison Relay 37 | . . . . . . . . 2 . 5 . 2 . 2 . 1 . 3 . 4 . 5 . 5 . 4 . . 4 . . . . . . Machines Repaired . | . . . . . . . . . . . . . . . . . . . . . . . . . . . . . . . . . . . . Machines Dismantled . | . . . . . . . . . . . . . . . . . . . . . . . . . . . . . . . . . . . . Machines Sabotaged . | . . . . . . . . . . . . . . . . . . . . . . . . . . . . . . . . . . . . Overloaded Fab Kills . | . . . . . . . . . . . . . . . . . . . . . . . . . . . . . . . . . . . . Hacking | -11 -10 -10 -9 -9 -9 -8 -8 -8 -8 -8 -7 -7 -7 -7 -6 -6 -6 -6 -5 -5 -5 -5 -4 -4 -4 -4 -3 -3 -3 -2 -2 -2 -1 -1 -1 --------- Run | Yrd Mat Min Mat Min Exi Min Mat Gar Mat Gar Fac Gar Fac Gar Fac Gar Fac Gar Fac Gar Fac Gar Fac Gar Fac Gar Res Qua Gar Res Tes Frg Acc Com Ac0 Machines Accessed 134 | . 4 . 4 . 2 . 4 1 7 2 6 1 10 1 9 . 1 3 6 2 5 2 1 2 8 2 6 8 . 4 13 3 12 3 2 Terminals 87 | . 4 . 4 . . . 3 1 5 2 4 1 5 1 3 . . 3 2 2 2 2 . 2 5 2 3 7 . 2 9 2 8 3 . Fabricators 12 | . . . . . . . . . . . 1 . 1 . 2 . . . 2 . 1 . . . 2 . . . . . 2 . 1 . . Repair Stations 2 | . . . . . . . . . 1 . . . . . . . . . . . . . . . . . . . . . . . 1 . . Recycling Units 4 | . . . . . . . . . . . . . 1 . 1 . . . . . 1 . . . . . . . . 1 . . . . . Scanalyzers 2 | . . . . . . . . . . . . . . . . . . . . . . . . . . . 1 . . . 1 . . . . Garrison Access 23 | . . . . . . . 1 . 1 . 1 . 3 . 3 . 1 . 2 . 1 . 1 . 1 . 2 1 . 1 1 1 2 . . Total Hacks 291 | . 14 . 16 . 2 . 11 1 16 4 17 1 14 1 16 . 1 4 12 4 7 5 1 5 16 4 8 25 . 8 30 4 21 4 19 Successful 148 | . 7 . 8 . 2 . 2 . 9 2 11 . 5 . 9 . 1 2 5 1 4 1 1 1 6 2 4 16 . 4 12 4 8 2 19 Failed 143 | . 7 . 8 . . . 9 1 7 2 6 1 9 1 7 . . 2 7 3 3 4 . 4 10 2 4 9 . 4 18 . 13 2 . Catastrophic 40 | . 1 . 1 . . . 3 1 3 . 2 1 6 1 1 . . 1 1 . 2 1 . 2 4 . 1 . . 2 5 . 1 . . Database Lockouts . | . . . . . . . . . . . . . . . . . . . . . . . . . . . . . . . . . . . . Manual 99 | . 14 . 10 . 1 . 7 . 8 2 6 . 4 . 2 . . . 3 1 1 . . . 5 . . 8 . 2 15 . 7 3 . Terminals 194 | . 14 . 16 . . . 10 1 10 4 15 1 7 1 4 . . 4 5 4 3 5 . 5 10 4 3 24 . 6 19 2 13 4 . Fabricators 25 | . . . . . . . . . . . 1 . 2 . 4 . . . 5 . 1 . . . 5 . . . . . 6 . 1 . . Repair Stations 8 | . . . . . . . . . 5 . . . . . . . . . . . . . . . . . . . . . . . 3 . . Recycling Units 5 | . . . . . . . . . . . . . 1 . 2 . . . . . 1 . . . . . . . . 1 . . . . . Scanalyzers 7 | . . . . . . . . . . . . . . . . . . . . . . . . . . . 3 . . . 4 . . . . Garrison Access 31 | . . . . . . . 1 . 1 . 1 . 4 . 6 . 1 . 2 . 2 . 1 . 1 . 2 1 . 1 1 2 4 . . Terminal Hacks 79 | . 4 . 5 . 2 . 1 . 3 2 7 . . . . . . 2 2 1 2 1 . 1 1 2 1 10 . 3 4 2 3 1 19 Record 18 | . . . . . 1 . . . . . . . . . . . . . . . . . . . . . . . . . . 1 . . 16 Part Schematic 1 | . . . . . . . . . . . . . . . . . . . . . . . . . . . . 1 . . . . . . . Robot Analysis 5 | . 2 . 1 . . . 1 . . . . . . . . . . . . . . . . . . . . 1 . . . . . . . Prototype ID Bank 6 | . . . 2 . . . . . . . 1 . . . . . . . . . . . . . . . . 1 . 1 1 . . . . Open Door 6 | . . . . . . . . . . . . . . . . . . 1 . . . . . . . . 1 . . . 1 . 2 1 . Branch Access Points 2 | . . . . . . . . . . . . . . . . . . . . . . . . . . . . . . 1 . . 1 . . Emergency Access Points 4 | . . . . . . . . . . 1 . . . . . . . . . . . 1 . 1 . 1 . . . . . . . . . Terminal Index 5 | . . . 1 . . . . . 1 . . . . . . . . . 1 . . . . . . . . 1 . . 1 . . . . Unreport Threat 6 | . . . . . . . . . 2 . 3 . . . . . . . . . . . . . . . . 1 . . . . . . . Locate Traps 2 | . 1 . . . . . . . . . . . . . . . . . . . . . . . . . . 1 . . . . . . . Disarm Traps 1 | . . . . . . . . . . . . . . . . . . . . . . . . . 1 . . . . . . . . . . Recall Investigation 1 | . . . . . . . . . . . 1 . . . . . . . . . . . . . . . . . . . . . . . . Recall Extermination 1 | . . . . . . . . . . . . . . . . . . . . . . . . . . . . . . . 1 . . . . Recall Reinforcements 2 | . . . . . . . . . . . . . . . . . . . . . . . . . . . . 2 . . . . . . . Hauler Manifests 2 | . . . . . . . . . . . . . . . . . . . . . 1 . . . . . . 1 . . . . . . . Registered Components 4 | . . . 1 . . . . . . . 1 . . . . . . . . . 1 . . . . . . 1 . . . . . . . Registered Prototypes 2 | . . . . . . . . . . . 1 . . . . . . . . . . . . . . . . . . 1 . . . . . Zone Layout 2 | . 1 . . . . . . . . . . . . . . . . . 1 . . . . . . . . . . . . . . . . Garrison Registry 1 | . . . . . . . . . . . . . . . . . . . . . . . . . . 1 . . . . . . . . . Patrol Navigation 1 | . . . . . . . . . . . . . . . . . . 1 . . . . . . . . . . . . . . . . . Security Stations 2 | . . . . . . . . . . 1 . . . . . . . . . 1 . . . . . . . . . . . . . . . Proto ID Catalog 2 | . . . . . 1 . . . . . . . . . . . . . . . . . . . . . . . . . . 1 . . . Gate Test 138-A 1 | . . . . . . . . . . . . . . . . . . . . . . . . . . . . . . . . . . . 1 Gate Test 138-B 1 | . . . . . . . . . . . . . . . . . . . . . . . . . . . . . . . . . . . 1 Gate Test 138-END 1 | . . . . . . . . . . . . . . . . . . . . . . . . . . . . . . . . . . . 1 Fabricator Hacks 9 | . . . . . . . . . . . 1 . 1 . 1 . . . 1 . . . . . 2 . . . . . 3 . . . . Network Status 5 | . . . . . . . . . . . 1 . 1 . 1 . . . 1 . . . . . 1 . . . . . . . . . . Load Schematic 2 | . . . . . . . . . . . . . . . . . . . . . . . . . . . . . . . 2 . . . . Build 2 | . . . . . . . . . . . . . . . . . . . . . . . . . 1 . . . . . 1 . . . . Repair Station Hacks 3 | . . . . . . . . . 3 . . . . . . . . . . . . . . . . . . . . . . . . . . Scan Component 2 | . . . . . . . . . 2 . . . . . . . . . . . . . . . . . . . . . . . . . . Repair 1 | . . . . . . . . . 1 . . . . . . . . . . . . . . . . . . . . . . . . . . Recycling Unit Hacks 2 | . . . . . . . . . . . . . . . 2 . . . . . . . . . . . . . . . . . . . . Retrieve Components 2 | . . . . . . . . . . . . . . . 2 . . . . . . . . . . . . . . . . . . . . Scanalyzer 3 | . . . . . . . . . . . . . . . . . . . . . . . . . . . 1 . . . 2 . . . . Insert Component 2 | . . . . . . . . . . . . . . . . . . . . . . . . . . . 1 . . . 1 . . . . Analyze 1 | . . . . . . . . . . . . . . . . . . . . . . . . . . . . . . . 1 . . . . Garrison Access Hacks 30 | . . . . . . . 1 . 1 . 1 . 3 . 6 . 1 . 2 . 2 . 1 . 1 . 2 1 . 1 1 2 4 . . Unlock Access 11 | . . . . . . . 1 . 1 . 1 . 1 . 1 . 1 . 1 . 1 . 1 . 1 . . 1 . . . . . . . Seal Access 11 | . . . . . . . . . . . . . 1 . 2 . . . 1 . . . . . . . 2 . . 1 1 1 2 . . Coupler Status 8 | . . . . . . . . . . . . . 1 . 3 . . . . . 1 . . . . . . . . . . 1 2 . . Unauthorized Hacks 22 | . 3 . 3 . . . . . 2 . 2 . 1 . . . . . . . . . . . 2 . . 5 . . 2 . 1 1 . Terminals 18 | . 3 . 3 . . . . . 2 . 2 . . . . . . . . . . . . . 1 . . 5 . . 1 . . 1 . Track 1 | . . . . . . . . . . . . . . . . . . . . . . . . . . . . . . . . . . 1 . Assimilate 2 | . . . 1 . . . . . . . . . . . . . . . . . . . . . 1 . . . . . . . . . . Botnet 11 | . 2 . 1 . . . . . 1 . 2 . . . . . . . . . . . . . . . . 4 . . 1 . . . . Operators 3 | . 1 . 1 . . . . . 1 . . . . . . . . . . . . . . . . . . . . . . . . . . Skim 1 | . . . . . . . . . . . . . . . . . . . . . . . . . . . . 1 . . . . . . . Fabricators 2 | . . . . . . . . . . . . . . . . . . . . . . . . . 1 . . . . . 1 . . . . Prioritize 1 | . . . . . . . . . . . . . . . . . . . . . . . . . 1 . . . . . . . . . . Recompile 1 | . . . . . . . . . . . . . . . . . . . . . . . . . . . . . . . 1 . . . . Repair Stations 1 | . . . . . . . . . . . . . . . . . . . . . . . . . . . . . . . . . 1 . . Patch 1 | . . . . . . . . . . . . . . . . . . . . . . . . . . . . . . . . . 1 . . Recycling Units . | . . . . . . . . . . . . . . . . . . . . . . . . . . . . . . . . . . . . Scanalyzers . | . . . . . . . . . . . . . . . . . . . . . . . . . . . . . . . . . . . . Garrison Access 1 | . . . . . . . . . . . . . 1 . . . . . . . . . . . . . . . . . . . . . . Eject 1 | . . . . . . . . . . . . . 1 . . . . . . . . . . . . . . . . . . . . . . Data Cores Recovered 3 | . . . . . . . . . . . 1 . . . . . . . . . . . . . . . . 1 . . . . . 1 . Used 2 | . . . . . . . . . . . 1 . . . . . . . . . . . . . . . . 1 . . . . . . . Hacking Detections 107 | . 4 . 4 . . . 3 1 7 2 5 1 8 1 8 . . 2 5 2 4 2 . 2 7 2 3 5 . 3 11 2 11 2 . Full Trace Events 10 | . . . . . . . . . . . . . . . 2 . . . 1 . . 1 . 2 1 1 1 . . . . . 1 . . Feedback Events . | . . . . . . . . . . . . . . . . . . . . . . . . . . . . . . . . . . . . Feedback Blocked 1 | . . . . . . . . . . . . . . . . . . . . . . . . . . . 1 . . . . . . . . Robot Schematics Acquired 3 | . . . . . . . . . . . . . . . . . . . . . . . . . . . . . . . . 3 . . . Robots Built 3 | . . . . . . . . . . . . . . . . . . . . . . . . . 3 . . . . . . . . . . Authchips . | . . . . . . . . . . . . . . . . . . . . . . . . . . . . . . . . . . . . Time 93 | . . . . . . . . . . . . . . . . . . . . . . . . . 93 . . . . . . . . . . Total Robot Build Rating 21 | . . . . . . . . . . . . . . . . . . . . . . . . . 21 . . . . . . . . . . Part Schematics Acquired 30 | . . . . . . . . . . . . . . . . . . . . . . . . . . . . 1 . . 23 6 . . . Parts Built 1 | . . . . . . . . . . . . . . . . . . . . . . . . . . . . . . . 1 . . . . Authchips 1 | . . . . . . . . . . . . . . . . . . . . . . . . . . . . . . . 1 . . . . Time 84 | . . . . . . . . . . . . . . . . . . . . . . . . . . . . . . . 84 . . . . Total Part Build Rating 6 | . . . . . . . . . . . . . . . . . . . . . . . . . . . . . . . 6 . . . . Parts Repaired 1 | . . . . . . . . . 1 . . . . . . . . . . . . . . . . . . . . . . . . . . Time 60 | . . . . . . . . . 60 . . . . . . . . . . . . . . . . . . . . . . . . . . Parts Recycled . | . . . . . . . . . . . . . . . . . . . . . . . . . . . . . . . . . . . . Recycled Matter . | . . . . . . . . . . . . . . . . . . . . . . . . . . . . . . . . . . . . Retrieved Matter . | . . . . . . . . . . . . . . . . . . . . . . . . . . . . . . . . . . . . Retrieved Components . | . . . . . . . . . . . . . . . . . . . . . . . . . . . . . . . . . . . . Parts Scanalyzed 2 | . . . . . . . . . . . . . . . . . . . . . . . . . . . 1 . . . 1 . . . . Part Schematics Acquired 1 | . . . . . . . . . . . . . . . . . . . . . . . . . . . . . . . 1 . . . . Parts Damaged . | . . . . . . . . . . . . . . . . . . . . . . . . . . . . . . . . . . . . Bothacking | -11 -10 -10 -9 -9 -9 -8 -8 -8 -8 -8 -7 -7 -7 -7 -6 -6 -6 -6 -5 -5 -5 -5 -4 -4 -4 -4 -3 -3 -3 -2 -2 -2 -1 -1 -1 ------------ Run | Yrd Mat Min Mat Min Exi Min Mat Gar Mat Gar Fac Gar Fac Gar Fac Gar Fac Gar Fac Gar Fac Gar Fac Gar Fac Gar Res Qua Gar Res Tes Frg Acc Com Ac0 Used RIF Installer 13 | . . . . . . . . 2 . 1 . 1 . 1 . 1 . 1 . 1 . 1 . 2 . 1 . . 1 . . . . . . Coupler Efficiency 1 | . . . . . . . . . . . . . . . . . . . . . . . . . . . . . 1 . . . . . . Hotswap 1 | . . . . . . . . 1 . . . . . . . . . . . . . . . . . . . . . . . . . . . Code Merge 1 | . . . . . . . . . . . . . . . . . . . . . . 1 . . . . . . . . . . . . . Threat Obfuscator 2 | . . . . . . . . . . . . . . 1 . . . . . . . . . . . 1 . . . . . . . . . Zone Cloak 1 | . . . . . . . . . . . . . . . . . . . . 1 . . . . . . . . . . . . . . . Robot Detection 1 | . . . . . . . . . . 1 . . . . . . . . . . . . . . . . . . . . . . . . . Watcher Feeds 1 | . . . . . . . . . . . . . . . . . . 1 . . . . . . . . . . . . . . . . . Patrol Navigation 1 | . . . . . . . . . . . . 1 . . . . . . . . . . . . . . . . . . . . . . . Structural Interface 1 | . . . . . . . . . . . . . . . . . . . . . . . . 1 . . . . . . . . . . . Autooverride 1 | . . . . . . . . . . . . . . . . . . . . . . . . 1 . . . . . . . . . . . Autoassimilate 1 | . . . . . . . . . . . . . . . . 1 . . . . . . . . . . . . . . . . . . . Robots Hacked 134 | . . . . . . . . . . 5 3 . 1 3 1 3 3 2 1 22 4 9 1 14 5 8 9 2 16 4 4 7 2 5 . Non-combat 23 | . . . . . . . . . . . 1 . . . 1 1 1 . 1 . 3 . 1 . 3 . 4 1 . 2 2 . 1 1 . Combat 111 | . . . . . . . . . . 5 2 . 1 3 . 2 2 2 . 22 1 9 . 14 2 8 5 1 16 2 2 7 1 4 . Autooverrided 3 | . . . . . . . . . . . . . . . . . . . . . . . . . . 1 . . 1 . . . . 1 . Autoassimilated 12 | . . . . . . . . . . . . . . . . . . 1 . 3 . 1 . 2 . 1 . . 2 . . 1 1 . . Robot Hacks Applied 123 | . . . . . . . . . . 5 3 . 1 3 1 3 3 1 1 19 4 8 1 12 6 7 9 2 13 4 6 6 1 4 . find_chute 1 | . . . . . . . . . . . 1 . . . . . . . . . . . . . . . . . . . . . . . . drop_inventory 7 | . . . . . . . . . . . . . . . . . 1 . . . 3 . . . 1 . 1 . . 1 . . . . . ignore_parts 1 | . . . . . . . . . . . . . . . 1 . . . . . . . . . . . . . . . . . . . . block_reporting 2 | . . . . . . . . . . . . . . . . . . . . . . . . . . . . 1 . . . . . 1 . map_route 2 | . . . . . . . . . . . . . . . . . . . . . . . . . 1 . 1 . . . . . . . . disable_scanner 3 | . . . . . . . . . . . . . . . . . . . . . . . . . . . . . . . . 3 . . . locate_prototypes 1 | . . . . . . . . . . . . . . . . . . . . . . . . . . . . . . . 1 . . . . report_schematics 2 | . . . . . . . . . . . . . . . . . . . . . . . . . . . . . . . 2 . . . . link_fov 1 | . . . . . . . . . . . . . . . . . . . . . . . . . . . . . . . 1 . . . . amplify_resonance 6 | . . . . . . . . . . . . . . 1 . . . . . 2 . . . 1 1 . . . 1 . . . . . . wipe_record 3 | . . . . . . . . . . . . . . . . . . . . 2 . . . . . . . . . 1 . . . . . disable_weapons 1 | . . . . . . . . . . . . . . . . . . . . . . . . 1 . . . . . . . . . . . reboot_system 13 | . . . . . . . . . . . . . . . . . . . . 6 . . . 1 1 1 . . 1 1 1 1 . . . overwrite_iff 6 | . . . . . . . . . . 1 . . . . . . . . . 2 . . . 1 1 . . . 1 . . . . . . streamctrl_high 1 | . . . . . . . . . . . . . . . . . . . . . . . . . . . . . 1 . . . . . . formatsys_low 2 | . . . . . . . . . . . . . . . . . . . . . . . 1 . . 1 . . . . . . . . . formatsys_high 71 | . . . . . . . . . . 4 2 . 1 2 . 3 2 1 1 7 1 8 . 8 1 5 7 1 9 1 1 2 1 3 . Relay Couplers Released 157 | . . . . . . . . 7 . 19 . 7 7 6 . 9 . 13 . 17 . 18 . 20 . 14 . . 18 . . . 2 . . Ejected 3 | . . . . . . . . . . . . . 3 . . . . . . . . . . . . . . . . . . . . . . Machine Destruction 146 | . . . . . . . . 7 . 19 . 7 . 6 . 5 . 13 . 17 . 18 . 20 . 14 . . 18 . . . 2 . . Programmers 8 | . . . . . . . . . . . . . 4 . . 4 . . . . . . . . . . . . . . . . . . . Attached 42 | . . . . . . . . . . 2 2 1 1 5 . 2 1 2 1 3 1 6 . 3 . 3 . . 7 . . . 1 1 . Merged Code Value 237 | . . . . . . . . . . . . . . . . . . . . . . 37 . 95 . 46 . . 59 . . . . . . Fabnet Peak Effective % . | . . . . . . . . . . . . . . . . . . . . . . . . . . . . . . . . . . . . Robots Rewired 9 | . . . . . . . . 3 . . . . . . 1 . . . . 2 . 3 . . . . . . . . . . . . . Allies Hacked 10 | . . . . . . . . . . . 1 . . . . . . 2 . . . 2 . 2 . . 3 . . . . . . . . Hacks Repelled . | . . . . . . . . . . . . . . . . . . . . . . . . . . . . . . . . . . . . Allies | -11 -10 -10 -9 -9 -9 -8 -8 -8 -8 -8 -7 -7 -7 -7 -6 -6 -6 -6 -5 -5 -5 -5 -4 -4 -4 -4 -3 -3 -3 -2 -2 -2 -1 -1 -1 -------- Run | Yrd Mat Min Mat Min Exi Min Mat Gar Mat Gar Fac Gar Fac Gar Fac Gar Fac Gar Fac Gar Fac Gar Fac Gar Fac Gar Res Qua Gar Res Tes Frg Acc Com Ac0 Total Allies 114 | . . . . . . . . 3 . 5 2 . 1 2 1 3 2 3 1 14 1 14 1 11 6 9 7 1 16 1 1 3 2 4 . Largest Group 21 | . . . . . . . . 3 . 2 2 1 1 2 1 2 2 3 1 8 8 12 11 20 21 16 17 3 4 1 1 2 1 3 . Highest-Rated Group 954 | . . . . . . . . 15 . 30 47 32 32 39 32 72 58 87 26 255 275 491 447 954 923 689 846 120 280 10 26 138 69 311 . Highest-Rated Ally 183 | . . . . . . . . 5 . 16 32 32 32 32 32 40 29 38 26 148 49 62 62 116 116 116 116 49 116 10 26 69 69 183 . Total Orders 49 | . . . . . . . . . . . 5 . . . . . . . 4 7 2 3 1 12 2 8 3 . . . . 2 . . . STAY 22 | . . . . . . . . . . . 3 . . . . . . . 2 5 2 2 . 3 1 2 1 . . . . 1 . . . ROAM 1 | . . . . . . . . . . . . . . . . . . . . . . . . 1 . . . . . . . . . . . FOLLOW 16 | . . . . . . . . . . . 2 . . . . . . . 2 2 . 1 . 4 1 2 1 . . . . 1 . . . AID 10 | . . . . . . . . . . . . . . . . . . . . . . . 1 4 . 4 1 . . . . . . . . Ally Attacks 616 | . . . . . . . . 19 . 16 19 1 2 10 1 16 . 31 . 65 6 55 . 91 15 105 57 15 61 . . 8 1 22 . Total Damage 19298 | . . . . . . . . 69 . 281 543 43 27 268 44 616 . 522 . 1359 127 1324 . 3405 510 3093 2447 302 2463 . . 328 112 1415 . Kills 117 | . . . . . . . . 2 . 1 3 . . 2 . 4 . 4 . 8 2 13 . 17 8 20 11 2 14 . . 1 1 4 . Allies Corrupted 13 | . . . . . . . . . . . . . . . 1 . . 2 . . 3 . . 2 . 2 2 . . . . . 1 . . Allies Melted . | . . . . . . . . . . . . . . . . . . . . . . . . . . . . . . . . . . . . Intel | -11 -10 -10 -9 -9 -9 -8 -8 -8 -8 -8 -7 -7 -7 -7 -6 -6 -6 -6 -5 -5 -5 -5 -4 -4 -4 -4 -3 -3 -3 -2 -2 -2 -1 -1 -1 ------- Run | Yrd Mat Min Mat Min Exi Min Mat Gar Mat Gar Fac Gar Fac Gar Fac Gar Fac Gar Fac Gar Fac Gar Fac Gar Fac Gar Res Qua Gar Res Tes Frg Acc Com Ac0 Active Infowar (turns) 10931 | 16 386 155 613 762 670 537 227 97 274 393 491 . 717 41 . . . . 2 . . . . . . . . . 2 . 10 2121 504 2190 723 Optics 4363 | . . . . . . . . . . . . . . . . . . . . . . . . . . . . . . . . 1669 504 2190 . Terrain 723 | . . . . . . . . . . . . . . . . . . . . . . . . . . . . . . . . . . . 723 Seismic 5576 | 16 386 155 613 762 670 537 227 97 274 393 491 . 717 41 . . . . . . . . . . . . . . . . . . . 197 . Cloaking 1796 | . . . . . . . . . . . . . . . . . . . . . . . . . . . . . . . . 129 504 1163 . Jamming 466 | . . . . . . . . . . . . . . . . . . . 2 . . . . . . . . . 2 . 10 452 . . . Robot Analysis Total 5 | . 2 . 1 . . . 1 . . . . . . . . . . . . . . . . . . . . 1 . . . . . . . Derelict Logs Recovered 3 | . . 1 . 2 . . . . . . . . . . . . . . . . . . . . . . . . . . . . . . . Drone Launches . | . . . . . . . . . . . . . . . . . . . . . . . . . . . . . . . . . . . . Drone Recoveries . | . . . . . . . . . . . . . . . . . . . . . . . . . . . . . . . . . . . . Exploration | -11 -10 -10 -9 -9 -9 -8 -8 -8 -8 -8 -7 -7 -7 -7 -6 -6 -6 -6 -5 -5 -5 -5 -4 -4 -4 -4 -3 -3 -3 -2 -2 -2 -1 -1 -1 ------------- Run | Yrd Mat Min Mat Min Exi Min Mat Gar Mat Gar Fac Gar Fac Gar Fac Gar Fac Gar Fac Gar Fac Gar Fac Gar Fac Gar Res Qua Gar Res Tes Frg Acc Com Ac0 Turns Passed 26528 | 90 412 691 839 918 670 590 342 1068 751 1111 1167 1395 751 476 477 360 40 468 534 812 434 937 44 721 394 546 495 333 401 249 917 2797 504 2275 1519 Spaces Moved 29092 | 43 223 415 423 547 409 338 114 471 294 504 579 577 1191 434 1022 429 54 528 793 1097 938 1164 52 1276 808 710 1095 797 755 493 1523 2859 902 2963 2272 Core 72 | 2 . . . . . . . . . . . 53 . 10 7 . . . . . . . . . . . . . . . . . . . . Treads 4553 | 41 223 415 423 547 409 338 114 471 294 504 579 195 . . . . . . . . . . . . . . . . . . . . . . . Legs . | . . . . . . . . . . . . . . . . . . . . . . . . . . . . . . . . . . . . Wheels 193 | . . . . . . . . . . . . . 193 . . . . . . . . . . . . . . . . . . . . . . Hover 9412 | . . . . . . . . . . . . 15 1 . 123 429 54 528 377 . . . . . . . . . . . . 1748 902 2963 2272 Flight 14862 | . . . . . . . . . . . . 314 997 424 892 . . . 416 1097 938 1164 52 1276 808 710 1095 797 755 493 1523 1111 . . . Fastest Speed 5 | 50 160 160 160 160 160 158 158 158 158 155 160 29 29 26 29 56 56 52 29 29 29 29 26 26 26 28 25 24 22 20 5 5 33 33 27 Average Speed 52 | 154 160 160 160 160 160 158 158 161 158 156 160 93 44 32 32 56 56 55 38 29 29 29 26 26 26 28 27 24 25 23 19 38 35 33 30 Slowest Speed 300 | 160 160 160 160 160 160 163 158 165 165 160 160 300 120 109 56 56 56 56 52 29 29 29 26 26 28 28 31 25 95 25 80 180 36 36 94 Overloaded Moves 53 | . . . . . . . . . . . . . . . . . . . . . . . . . . . . . . . 19 27 . . 7 Propulsion Burnouts . | . . . . . . . . . . . . . . . . . . . . . . . . . . . . . . . . . . . . Robots Hopped 41 | . . . . . . . . . . . . . . 4 7 . . . 2 3 . . . 5 4 2 2 . 7 . 4 1 . . . Potential Cave-ins . | . . . . . . . . . . . . . . . . . . . . . . . . . . . . . . . . . . . . Cave-ins Triggered . | . . . . . . . . . . . . . . . . . . . . . . . . . . . . . . . . . . . . Teleports 2 | . . . . . . . . . . . . . . . . . . . . . . . . . . . . . . . . . . 1 1 Exploration Rate (%) 49 | 4 36 93 40 86 77 82 14 40 27 61 18 41 32 54 24 61 2 58 29 73 17 90 2 83 21 80 28 82 79 18 91 43 33 74 91 Regions Visited 35 Branch Regions 9 Pre-discovered Areas 3 | . . 1 . 1 1 . . . . . . . . . . . . . . . . . . . . . . . . . . . . . . Known Exits Taken 13 | . . . . . . . 1 . 1 . 1 . 1 . 1 . 1 . 1 . 1 . 1 . 1 . . 1 . 1 . . 1 . . Unknown Exits Taken 11 | 1 1 1 1 1 1 1 . . . . . . . . . . . . . . . . . . . . 1 . . . 1 1 . 1 . Scrap Searched 5 | . . 3 . 1 . 1 . . . . . . . . . . . . . . . . . . . . . . . . . . . . . Spaces Dug 158 | . 8 3 . . . . . 2 . . 2 1 4 . 12 11 . 4 11 . 1 2 . 2 5 3 2 9 . 7 14 5 24 2 24 Terrain Destroyed 716 | . 11 23 1 16 . 12 1 3 30 4 49 18 14 87 12 44 . 4 17 1 1 109 . 17 5 35 2 9 64 31 15 16 27 3 35 Melee 106 | . . . . . . . . 2 . . 2 1 4 . 12 3 . 2 . . 1 2 . 2 5 3 2 9 . 6 9 5 20 2 14 Projectile 79 | . . . . . . . . . . . 3 4 . . . 1 . 2 17 1 . 3 . 3 . . . . . 1 6 9 7 1 21 AOE 527 | . 11 23 1 16 . 12 1 1 30 4 43 12 10 87 . 40 . . . . . 104 . 12 . 32 . . 64 24 . . . . . Terrain Rammed . | . . . . . . . . . . . . . . . . . . . . . . . . . . . . . . . . . . . . Walls Destroyed . | . . . . . . . . . . . . . . . . . . . . . . . . . . . . . . . . . . . . Machines Disabled . | . . . . . . . . . . . . . . . . . . . . . . . . . . . . . . . . . . . . Actions | -11 -10 -10 -9 -9 -9 -8 -8 -8 -8 -8 -7 -7 -7 -7 -6 -6 -6 -6 -5 -5 -5 -5 -4 -4 -4 -4 -3 -3 -3 -2 -2 -2 -1 -1 -1 --------- Run | Yrd Mat Min Mat Min Exi Min Mat Gar Mat Gar Fac Gar Fac Gar Fac Gar Fac Gar Fac Gar Fac Gar Fac Gar Fac Gar Res Qua Gar Res Tes Frg Acc Com Ac0 Total 38374 | 59 249 433 541 577 427 367 236 653 505 707 736 1307 1348 724 1124 511 66 653 998 1527 1098 1678 82 1614 962 1013 1274 908 923 585 2045 4350 1045 4169 2880 Wait 5921 | . . . 38 5 . 4 85 32 139 58 26 587 99 190 25 32 . 63 155 258 135 320 27 252 131 241 127 80 89 31 432 972 86 970 232 Move 28994 | 42 222 414 422 546 408 337 114 470 294 503 579 576 1191 427 1010 428 53 527 789 1091 938 1163 52 1267 800 706 1090 797 742 492 1514 2856 901 2962 2271 Hop 29 | . . . . . . . . . . . . . . 2 4 . . . 2 2 . . . 3 3 1 2 . 5 . 4 1 . . . Pick Up 228 | 5 3 7 13 3 9 3 3 7 5 12 13 6 2 2 2 2 2 2 7 6 7 8 . 3 3 2 3 2 8 8 5 28 4 15 18 Fast Attach 166 | 7 . . 5 . . . 1 2 2 5 8 10 11 9 13 4 . 2 6 . 3 3 . 2 1 1 8 1 6 1 6 34 2 6 7 Attach 97 | . . . 1 . . . 3 4 4 3 7 8 . 1 1 . 1 1 3 1 1 4 1 1 . . 2 . 2 1 3 14 3 16 11 Detach 71 | . . . . . . . . 1 . 1 . 5 . . 3 1 1 . . 1 2 2 . . . . 5 . 2 1 2 21 1 18 4 Swap 360 | 1 6 5 13 8 . 5 8 9 13 24 24 2 3 5 . 3 1 7 3 3 2 11 . 8 . 12 5 1 9 12 16 54 13 26 48 Drop 253 | 1 2 . 21 5 9 5 3 10 7 12 12 13 5 1 8 2 1 2 9 2 4 4 . 3 5 1 9 3 5 10 8 38 2 11 20 Fire 923 | 2 16 6 28 9 1 12 19 59 40 49 48 59 2 21 . 13 . 15 24 90 5 55 1 29 7 22 12 3 40 10 16 144 5 27 34 Melee 765 | . . . . . . . . 10 . 35 7 10 34 11 24 20 5 21 . . 1 17 . 17 12 14 8 20 8 19 39 63 27 108 235 Ram . | . . . . . . . . . . . . . . . . . . . . . . . . . . . . . . . . . . . . Kick . | . . . . . . . . . . . . . . . . . . . . . . . . . . . . . . . . . . . . Crush 7 | 1 . 1 . 1 . 1 . . 1 1 1 . . . . . . . . . . . . . . . . . . . . . . . . Escape Stasis 418 | . . . . . . . . . . . . 31 . 55 . 5 . 11 . 71 . 75 . 25 . 8 . . 4 . . 125 . 8 . Rewire 133 | . . . . . . . . 49 . 4 2 . 1 . 34 1 2 2 . 2 . 16 1 4 . 5 3 1 3 . . . 1 2 . Trap 9 | . . . . . . . . . . . 9 . . . . . . . . . . . . . . . . . . . . . . . . Miscellaneous . | . . . . . . . . . . . . . . . . . . . . . . . . . . . . . . . . . . . . Route ------- -11/Scrapyard -10/Materials -10/Mines (discovered 2 exits: *Mat x2) -9/Materials (discovered 2 exits: *Mat / [*Min]) -9/Mines (discovered 3 exits: *Mat x2 / *Exi) -9/Exiles -8/Mines -8/Materials (discovered 3 exits: Fac x2 / Gar) -8/Garrison (discovered 2 exits: *Mat x2) -8/Materials (discovered 2 exits: *Fac / Gar) -8/Garrison (discovered 2 exits: *Fac x2) -7/Factory (discovered 4 exits: *Fac x2 / [*Low] / Gar) -7/Garrison -7/Factory (discovered 5 exits: *Fac x2 / [*Sto] / [*Low] / Gar) -7/Garrison (discovered 2 exits: *Fac x2) -6/Factory (discovered 5 exits: *Fac x2 / *Low x2 / Gar) -6/Garrison -6/Factory -6/Garrison (discovered 2 exits: *Fac x2) -5/Factory (discovered 3 exits: *Fac / [*Upp] / Gar) -5/Garrison (discovered 3 exits: *Fac x3) -5/Factory (discovered 2 exits: *Fac / Gar) -5/Garrison (discovered 3 exits: *Fac x3) -4/Factory -4/Garrison (discovered 2 exits: *Fac x2) -4/Factory (discovered 2 exits: [*Upp] / Gar) -4/Garrison (discovered 3 exits: *Res x3) -3/Research -3/Quarantine (discovered 2 exits: *Res / Gar) -3/Garrison (discovered 2 exits: *Res x2) -2/Research (discovered 2 exits: *Tes x2) -2/Testing (discovered 3 exits: *Acc / [*Sec] / *Frg) -2/Protoforge -1/Access -1/Command (discovered 3 exits: [*Sur x2] / *Ac0) -1/Access_0 0b11 Command History --------- Turn | Location | Event 15 | -11/Scrapyard | Discovered new exit (range 14) 91 | -11/Scrapyard | Entered Materials 326 | -10/Materials | Build established: Mutant 377 | -10/Materials | Discovered new exit (range 16) 503 | -10/Materials | Entered Mines 685 | -10/Mines | Found a hidden stash of uninstalled traps 744 | -10/Mines | Found a damaged Exp. Sensor Array with a note attached 747 | -10/Mines | Found Prototype Device 855 | -10/Mines | Discovered new exit (range 11) 879 | -10/Mines | Discovered new exit (range 13) 917 | -10/Mines | A weapon hastily lodged in a ceiling crevice suddenly fell to the ground 990 | -10/Mines | Learned location of Storage (-7) 1194 | -10/Mines | Entered Materials 1194 | -9/Materials | Evolved 2 slots: Propulsion x1, Utility x1 1739 | -9/Materials | Discovered new exit (range 4) 1819 | -9/Materials | Discovered new exit (range 12) 1986 | -9/Materials | Build established: Scavenger-Mutant 2033 | -9/Materials | Entered Mines 2044 | -9/Mines | Met a Derelict bent on vengeance 2271 | -9/Mines | Discovered new exit (range 10) 2316 | -9/Mines | Deemed a non-threat by the Exiles lab entrance 2316 | -9/Mines | Discovered new exit (range 5) 2331 | -9/Mines | Received a Rocket Launcher from a helpful Derelict 2542 | -9/Mines | Joined a pair of Derelicts in attacking an 0b10 outpost 2553 | -9/Mines | Learned 2 Materials zone layouts 2678 | -9/Mines | Learned location of 1 exit from Materials 2739 | -9/Mines | Discovered new exit (range 5) 2951 | -9/Mines | Entered Exiles 2991 | -9/Exiles | Met 8R-AWN 3017 | -9/Exiles | Met EX-HEX 3089 | -9/Exiles | Met EX-DEC 3122 | -9/Exiles | Visited The Gauntlet 3196 | -9/Exiles | Learned location of Zion (-7) 3263 | -9/Exiles | Discovered new exit (range 11) 3375 | -9/Exiles | Met EX-BIN 3398 | -9/Exiles | Aligned with FarCom system 3399 | -9/Exiles | Given EX-Vault access code 3438 | -9/Exiles | Opened EX-Vault 3447 | -9/Exiles | Found Potential Leg 3450 | -9/Exiles | Found Potential Leg 3455 | -9/Exiles | Found Army-in-a-Box 3490 | -9/Exiles | Warned to stay clear of 0b10 Research branches 3507 | -9/Exiles | Exiles lab attacked by MAIN.C 3619 | -9/Exiles | Attacked by the Exiles 3621 | -9/Exiles | Entered Mines 4198 | -8/Mines | Discovered new exit (range 8) 4211 | -8/Mines | Entered Materials 4211 | -8/Materials | Evolved 2 slots: Propulsion x1, Utility x1 4212 | -8/Materials | Identified exit to Factory 4553 | -8/Materials | Identified exit to Garrison 4553 | -8/Materials | Entered Garrison 4587 | -8/Garrison | Triggered checkpoint 4614 | -8/Garrison | Discovered new exit (range 5) 4811 | -8/Garrison | Triggered checkpoint 4852 | -8/Garrison | Garrison Relay disabled 4969 | -8/Garrison | Installed Relay Interface Framework 5145 | -8/Garrison | Triggered checkpoint 5149 | -8/Garrison | Triggered checkpoint 5242 | -8/Garrison | Triggered checkpoint 5305 | -8/Garrison | Garrison Relay disabled 5350 | -8/Garrison | Discovered new exit (range 14) 5434 | -8/Garrison | Expanded RIF knowledge: Hotswap 5621 | -8/Garrison | Entered Materials 5955 | -8/Materials | Repaired Adv. Beam Rifle 6090 | -8/Materials | Lost 3 parts (1p1u1w) 6182 | -8/Materials | Discovered exit to Factory (range 10) 6372 | -8/Materials | Identified exit to Garrison 6372 | -8/Materials | Entered Garrison 6408 | -8/Garrison | Triggered checkpoint 6486 | -8/Garrison | Core integrity fell below 50% 6629 | -8/Garrison | Garrison Relay disabled 6670 | -8/Garrison | Expanded RIF knowledge: Robot Detection 6815 | -8/Garrison | Build established: Bothacker-Mutant 7000 | -8/Garrison | Triggered checkpoint 7052 | -8/Garrison | Triggered checkpoint 7073 | -8/Garrison | Garrison Relay disabled 7134 | -8/Garrison | Learned Factory security intel 7140 | -8/Garrison | Discovered exit to Factory (range 13) 7186 | -8/Garrison | Triggered checkpoint 7250 | -8/Garrison | Garrison Relay disabled 7262 | -8/Garrison | Triggered checkpoint 7375 | -8/Garrison | Garrison Relay disabled 7397 | -8/Garrison | Garrison Relay disabled 7440 | -8/Garrison | Discovered exit to Factory (range 14) 7483 | -8/Garrison | Entered Factory 7483 | -7/Factory | Accompanied by 1 ally 7483 | -7/Factory | Evolved 2 slots: Utility x2 7717 | -7/Factory | Discovered new exit (range 12) 7931 | -7/Factory | P-60 Hacker assimilated allied Guardian 4a 8087 | -7/Factory | Destroyed 16 combat bots 8296 | -7/Factory | Discovered new exit (range 10) 8486 | -7/Factory | Discovered new exit (range 4) 8650 | -7/Factory | Identified exit to Garrison 8650 | -7/Factory | Entered Garrison 8650 | -7/Garrison | Accompanied by 1 ally 8742 | -7/Garrison | Triggered checkpoint 8749 | -7/Garrison | Build established: Scavenger-Mutant 8755 | -7/Garrison | Garrison Relay disabled 8890 | -7/Garrison | Triggered checkpoint 9009 | -7/Garrison | Destroyed 10 combat bots 9009 | -7/Garrison | Lost 3 parts (1n2u) 9093 | -7/Garrison | Discovered new exit (range 15) 9142 | -7/Garrison | Expanded RIF knowledge: Patrol Navigation 9202 | -7/Garrison | Triggered checkpoint 9305 | -7/Garrison | Build established: Mutant 9473 | -7/Garrison | Garrison Relay disabled 9715 | -7/Garrison | Build established: Scavenger-Sprinter 10045 | -7/Garrison | Entered Factory 10230 | -7/Factory | Discovered new exit (range 8) 10284 | -7/Factory | Discovered new exit (range 15) 10680 | -7/Factory | Discovered new exit (range 6) 10708 | -7/Factory | Build established: Bothacker-Mutant 10775 | -7/Factory | Discovered new exit (range 9) 10796 | -7/Factory | Identified exit to Garrison 10796 | -7/Factory | Entered Garrison 10835 | -7/Garrison | Core integrity fell below 50% 10868 | -7/Garrison | Lost 4 parts (1n3u) 10966 | -7/Garrison | Triggered checkpoint 10966 | -7/Garrison | Lost 3 parts (1p2n) 11013 | -7/Garrison | Garrison Relay disabled 11072 | -7/Garrison | Triggered checkpoint 11078 | -7/Garrison | Discovered new exit (range 10) 11082 | -7/Garrison | Expanded RIF knowledge: Threat Obfuscation 11086 | -7/Garrison | Triggered checkpoint 11135 | -7/Garrison | Garrison Relay disabled 11226 | -7/Garrison | Triggered checkpoint 11228 | -7/Garrison | Triggered checkpoint 11228 | -7/Garrison | Triggered checkpoint 11269 | -7/Garrison | Discovered new exit (range 10) 11270 | -7/Garrison | Triggered checkpoint 11272 | -7/Garrison | Entered Factory 11272 | -6/Factory | Evolved 2 slots: Utility x2 11277 | -6/Factory | Lost 5 parts (1p1n1u2w) 11367 | -6/Factory | Discovered new exit (range 4) 11368 | -6/Factory | Identified exit to Factory 11450 | -6/Factory | Found Prototype Processor 11450 | -6/Factory | Identified Exp. Targeting Computer 11522 | -6/Factory | Spotted B-75 Beast 11617 | -6/Factory | Discovered exit to Factory (range 10) 11627 | -6/Factory | Identified exit to Garrison 11640 | -6/Factory | Discovered new exit (range 9) 11649 | -6/Factory | Discovered new exit (range 11) 11649 | -6/Factory | Identified exit to Lower Caves 11749 | -6/Factory | Entered Garrison 11757 | -6/Garrison | Expanded RIF knowledge: Autoassimilate 11853 | -6/Garrison | Triggered checkpoint 11864 | -6/Garrison | Triggered checkpoint 11946 | -6/Garrison | Build established: Botlord-Mutant 11994 | -6/Garrison | Garrison Relay disabled 12073 | -6/Garrison | Triggered checkpoint 12086 | -6/Garrison | Discovered new exit (range 9) 12109 | -6/Garrison | Entered Factory 12121 | -6/Factory | Identified exit to Garrison 12149 | -6/Factory | Entered Garrison 12149 | -6/Garrison | Accompanied by 2 allies 12182 | -6/Garrison | Garrison Relay disabled 12233 | -6/Garrison | Triggered checkpoint 12241 | -6/Garrison | Discovered exit to Factory (range 15) 12264 | -6/Garrison | Garrison Relay disabled 12300 | -6/Garrison | Expanded RIF knowledge: Watcher Feeds 12315 | -6/Garrison | Triggered checkpoint 12380 | -6/Garrison | Lost 3 allies 12392 | -6/Garrison | Discovered exit to Factory (range 12) 12453 | -6/Garrison | Triggered checkpoint 12461 | -6/Garrison | Garrison Relay disabled 12472 | -6/Garrison | Rescued a captive Derelict 12617 | -6/Garrison | Entered Factory 12617 | -5/Factory | Evolved 2 slots: Propulsion x1, Utility x1 12987 | -5/Factory | Discovered new exit (range 7) 13029 | -5/Factory | Discovered new exit (range 33) 13151 | -5/Factory | Identified exit to Garrison 13151 | -5/Factory | Entered Garrison 13156 | -5/Garrison | Spotted B-86 Titan 13157 | -5/Garrison | Rewired B-75 Beast 13169 | -5/Garrison | Rewired B-90 Cyclops 13174 | -5/Garrison | Allies destroyed B-86 Titan 13219 | -5/Garrison | Triggered checkpoint 13268 | -5/Garrison | Build established: Botlord-Sprinter 13376 | -5/Garrison | Discovered new exit (range 11) 13402 | -5/Garrison | Triggered checkpoint 13452 | -5/Garrison | Garrison Relay disabled 13474 | -5/Garrison | Triggered checkpoint 13542 | -5/Garrison | Triggered checkpoint 13669 | -5/Garrison | Learned Factory security intel 13673 | -5/Garrison | Triggered checkpoint 13676 | -5/Garrison | Expanded RIF knowledge: Zone Cloak 13717 | -5/Garrison | Garrison Relay disabled 13728 | -5/Garrison | Discovered new exit (range 8) 13791 | -5/Garrison | Triggered checkpoint 13821 | -5/Garrison | Garrison Relay disabled 13845 | -5/Garrison | Discovered new exit (range 15) 13850 | -5/Garrison | Triggered checkpoint 13884 | -5/Garrison | Garrison Relay disabled 13896 | -5/Garrison | Spotted B-75 Beast 13896 | -5/Garrison | Spotted B-75 Beast 13963 | -5/Garrison | Entered Factory 13963 | -5/Factory | Accompanied by 7 allies 14010 | -5/Factory | Found Mni. Smartbomb Launcher 14197 | -5/Factory | Lost 3 allies 14281 | -5/Factory | Discovered new exit (range 8) 14397 | -5/Factory | Identified exit to Garrison 14397 | -5/Factory | Entered Garrison 14397 | -5/Garrison | Accompanied by 4 allies 14501 | -5/Garrison | Expanded RIF knowledge: Code Merge 14703 | -5/Garrison | Triggered checkpoint 14742 | -5/Garrison | Triggered checkpoint 14747 | -5/Garrison | Triggered checkpoint 14759 | -5/Garrison | Triggered checkpoint 14892 | -5/Garrison | Triggered checkpoint 14922 | -5/Garrison | Triggered checkpoint 14948 | -5/Garrison | Garrison Relay disabled 15003 | -5/Garrison | Garrison Relay disabled 15014 | -5/Garrison | Discovered new exit (range 14) 15050 | -5/Garrison | Triggered checkpoint 15055 | -5/Garrison | Garrison Relay disabled 15133 | -5/Garrison | Found embedded Infiltrators 15138 | -5/Garrison | Triggered checkpoint 15161 | -5/Garrison | Garrison Relay disabled 15175 | -5/Garrison | Discovered new exit (range 14) 15197 | -5/Garrison | Discovered new exit (range 8) 15334 | -5/Garrison | Entered Factory 15334 | -4/Factory | Accompanied by 10 allies 15334 | -4/Factory | Evolved 2 slots: Propulsion x1, Utility x1 15378 | -4/Factory | Identified exit to Garrison 15378 | -4/Factory | Entered Garrison 15378 | -4/Garrison | Accompanied by 11 allies 15389 | -4/Garrison | Triggered checkpoint 15408 | -4/Garrison | Garrison Relay disabled 15490 | -4/Garrison | Spotted B-86 Titan 15501 | -4/Garrison | Assimilated Titan 7a with formatsys_high 15504 | -4/Garrison | Triggered checkpoint 15508 | -4/Garrison | Triggered checkpoint 15517 | -4/Garrison | Triggered checkpoint 15532 | -4/Garrison | Triggered checkpoint 15630 | -4/Garrison | Discovered new exit (range 9) 15635 | -4/Garrison | Triggered checkpoint 15690 | -4/Garrison | Garrison Relay disabled 15721 | -4/Garrison | Expanded RIF knowledge: Structural Interface 15725 | -4/Garrison | Discovered new exit (range 10) 15731 | -4/Garrison | Garrison Relay disabled 15793 | -4/Garrison | Garrison Relay disabled 15904 | -4/Garrison | Garrison Relay disabled 15915 | -4/Garrison | Lost 5 allies 15919 | -4/Garrison | Expanded RIF knowledge: Autooverride 16099 | -4/Garrison | Entered Factory 16099 | -4/Factory | Accompanied by 15 allies 16178 | -4/Factory | Discovered new exit (range 21) 16261 | -4/Factory | Fabricated L-61 Swordsman? 16463 | -4/Factory | Identified exit to Garrison 16493 | -4/Factory | Entered Garrison 16493 | -4/Garrison | Accompanied by 15 allies 16498 | -4/Garrison | Discovered new exit (range 56) 16498 | -4/Garrison | Discovered new exit (range 82) 16498 | -4/Garrison | Discovered new exit (range 63) 16500 | -4/Garrison | Garrison Relay disabled 16513 | -4/Garrison | Triggered checkpoint 16565 | -4/Garrison | P-70 Sage assimilated allied Swordsman 7a 16570 | -4/Garrison | P-70 Sage assimilated allied Machinist 7a 16612 | -4/Garrison | P-70 Sage assimilated allied Sentinel 7a 16626 | -4/Garrison | Lost 3 allies 16629 | -4/Garrison | Found embedded Infiltrators 16636 | -4/Garrison | Triggered checkpoint 16649 | -4/Garrison | Spotted B-86 Titan 16651 | -4/Garrison | Assimilated Titan 7b with formatsys_high 16655 | -4/Garrison | Triggered checkpoint 16660 | -4/Garrison | Triggered checkpoint 16677 | -4/Garrison | Destroyed 8 combat bots 16695 | -4/Garrison | Triggered checkpoint 16746 | -4/Garrison | Triggered checkpoint 16758 | -4/Garrison | Garrison Relay disabled 16818 | -4/Garrison | Expanded RIF knowledge: Threat Obfuscation 16827 | -4/Garrison | Garrison Relay disabled 16851 | -4/Garrison | Triggered checkpoint 16864 | -4/Garrison | Garrison Relay disabled 16893 | -4/Garrison | Triggered checkpoint 17039 | -4/Garrison | Entered Research 17039 | -3/Research | Accompanied by 12 allies 17039 | -3/Research | Evolved 2 slots: Propulsion x1, Utility x1 17149 | -3/Research | Found Prototype Processor 17149 | -3/Research | Identified Exp. Terrain Scan Processor 17432 | -3/Research | Discovered new exit (range 9) 17534 | -3/Research | Entered Quarantine 17534 | -3/Quarantine | Accompanied by 3 allies 17555 | -3/Quarantine | Found Alien Artifact 17656 | -3/Quarantine | Found Alien Slashing Weapon 17719 | -3/Quarantine | Cryocooling Duct disabled 17728 | -3/Quarantine | Discovered new exit (range 15) 17734 | -3/Quarantine | Ambient heat levels rising (+20) 17734 | -3/Quarantine | Non-combat units ordered to evacuate 17867 | -3/Quarantine | Identified exit to Garrison 17867 | -3/Quarantine | Entered Garrison 17869 | -3/Garrison | Triggered checkpoint 17921 | -3/Garrison | Triggered checkpoint 17953 | -3/Garrison | Found embedded Infiltrators 17961 | -3/Garrison | Spotted B-86 Titan 17967 | -3/Garrison | Triggered checkpoint 17968 | -3/Garrison | Triggered checkpoint 17968 | -3/Garrison | Triggered checkpoint 17991 | -3/Garrison | Garrison Relay disabled 18017 | -3/Garrison | Garrison Relay disabled 18050 | -3/Garrison | Hijacked Titan 8a control node with streamctrl_high 18128 | -3/Garrison | Lost 7 allies 18139 | -3/Garrison | Expanded RIF knowledge: Coupler Efficiency 18170 | -3/Garrison | Discovered new exit (range 10) 18193 | -3/Garrison | Triggered checkpoint 18248 | -3/Garrison | Garrison Relay disabled 18257 | -3/Garrison | Triggered checkpoint 18265 | -3/Garrison | Discovered new exit (range 2) 18268 | -3/Garrison | Entered Research 18268 | -2/Research | Evolved 2 slots: Utility x1, Weapon x1 18269 | -2/Research | Identified Sigix Broadsword 18378 | -2/Research | Identified exit to Testing 18517 | -2/Research | Entered Testing 18524 | -2/Testing | Found Prototype Ballistic Gun 18525 | -2/Testing | Identified Hyp. Multirail 18723 | -2/Testing | Found Prototype Device 18723 | -2/Testing | Identified AEGIS Remote Shield 18973 | -2/Testing | Discovered new exit (range 16) 19221 | -2/Testing | Fabricated Cld. Nuclear Pulse Thruster? 19301 | -2/Testing | Found Prototype Protection 19301 | -2/Testing | Identified Hvy. Regenerative Plating 19304 | -2/Testing | Found Prototype Protection 19304 | -2/Testing | Identified Lgt. Regenerative Plating 19403 | -2/Testing | Spotted Fortress 19421 | -2/Testing | Discovered new exit (range 5) 19421 | -2/Testing | Discovered new exit (range 6) 19434 | -2/Testing | Entered Protoforge 19470 | -2/Protoforge | Spotted Hotshot 19472 | -2/Protoforge | Spotted Hotshot 19473 | -2/Protoforge | Spotted Hotshot 19473 | -2/Protoforge | Spotted Hotshot 19473 | -2/Protoforge | Spotted Hotshot 19473 | -2/Protoforge | Spotted Hotshot 19474 | -2/Protoforge | Spotted Hotshot 19492 | -2/Protoforge | Discovered new exit (range 10) 19502 | -2/Protoforge | Spotted Hotshot 19503 | -2/Protoforge | Spotted Hotshot 19514 | -2/Protoforge | Spotted Hotshot 19519 | -2/Protoforge | Spotted Hotshot 19581 | -2/Protoforge | Spotted Decapitator 19581 | -2/Protoforge | Spotted Decapitator 19581 | -2/Protoforge | Spotted Decapitator 19581 | -2/Protoforge | Spotted Decapitator 19588 | -2/Protoforge | Spotted Immortal 19588 | -2/Protoforge | Spotted Immortal 19886 | -2/Protoforge | Destroyed Decapitator 19887 | -2/Protoforge | System corruption reached 10% 19887 | -2/Protoforge | Superfortress began startup sequence 19894 | -2/Protoforge | Allies destroyed Decapitator 19930 | -2/Protoforge | Found Prototype Power Core 19930 | -2/Protoforge | Identified Cep. Zero-point Core 19939 | -2/Protoforge | Spotted V067-w 19979 | -2/Protoforge | Destroyed V067-w 19982 | -2/Protoforge | Found Prototype Protection 19982 | -2/Protoforge | Identified Centrium Heavy Armor Plating 19985 | -2/Protoforge | Found Prototype Hover Unit 19985 | -2/Protoforge | Identified Cep. Combat Aerolev Unit 20007 | -2/Protoforge | Lost 5 parts (2n1u2w) 20015 | -2/Protoforge | Spotted Decapitator 20015 | -2/Protoforge | Spotted V710-w 20015 | -2/Protoforge | Spotted V227-t 20028 | -2/Protoforge | Spotted V135-y 20028 | -2/Protoforge | Spotted V039-t 20028 | -2/Protoforge | Spotted V168-z 20028 | -2/Protoforge | Spotted V849-l 20035 | -2/Protoforge | Found Prototype Device 20037 | -2/Protoforge | Spotted Immortal 20037 | -2/Protoforge | Spotted Immortal 20037 | -2/Protoforge | Spotted Decapitator 20037 | -2/Protoforge | Spotted Decapitator 20037 | -2/Protoforge | Spotted Decapitator 20037 | -2/Protoforge | Spotted Decapitator 20044 | -2/Protoforge | Destroyed Decapitator 20044 | -2/Protoforge | Destroyed Decapitator 20046 | -2/Protoforge | Destroyed Decapitator 20052 | -2/Protoforge | Destroyed Decapitator 20109 | -2/Protoforge | Spotted V452-b 20122 | -2/Protoforge | Spotted Decapitator 20156 | -2/Protoforge | Destroyed V710-w 20181 | -2/Protoforge | Destroyed V227-t 20184 | -2/Protoforge | Found Cep. Combat Aerolev Unit 20187 | -2/Protoforge | Lost 3 parts (2n1u) 20199 | -2/Protoforge | Found Cep. Combat Aerolev Unit 20210 | -2/Protoforge | Found Prototype Ballistic Gun 20210 | -2/Protoforge | Identified Multirail 20263 | -2/Protoforge | Destroyed Decapitator 20265 | -2/Protoforge | Destroyed Decapitator 20304 | -2/Protoforge | Found Prototype Ballistic Cannon 20304 | -2/Protoforge | Identified Cep. Helical Railcannon 20318 | -2/Protoforge | Found Prototype Piercing Weapon 20318 | -2/Protoforge | Identified Exp. Jetlance 20323 | -2/Protoforge | Found Cep. Disintegration Ray 20331 | -2/Protoforge | Found Prototype Energy Gun 20331 | -2/Protoforge | Identified Cep. Lightning Penetrator 20345 | -2/Protoforge | Found Faulty Cep. Disintegration Ray 20350 | -2/Protoforge | Found Cep. Plasma Driver 20356 | -2/Protoforge | Found Faulty Cep. Plasma Driver 20358 | -2/Protoforge | Found Faulty Cep. Plasma Driver 20459 | -2/Protoforge | Destroyed Immortal 20470 | -2/Protoforge | Destroyed Immortal 20485 | -2/Protoforge | Build established: Scavenger-Mutant 20541 | -2/Protoforge | Destroyed V452-b 20546 | -2/Protoforge | Found Cep. Gyrokinetic System 20551 | -2/Protoforge | Found Prototype Storage 20551 | -2/Protoforge | Identified Cep. Antigrav Storage Unit 20555 | -2/Protoforge | Found Cep. NT7 Matterbank 20557 | -2/Protoforge | Found Cep. Matter Streamer 20568 | -2/Protoforge | Found Cep. Chromion Battery 20572 | -2/Protoforge | Found Cep. Chromion Battery 20585 | -2/Protoforge | Found Cep. Chromion Battery 20588 | -2/Protoforge | Found Cep. Chromion Battery 20606 | -2/Protoforge | Found Cep. Gyrokinetic System 20633 | -2/Protoforge | Found Cep. Gyrokinetic System 20635 | -2/Protoforge | Found Cep. Gyrokinetic System 20647 | -2/Protoforge | Identified Crosscalibrator 20654 | -2/Protoforge | Found Cep. Combat Aerolev Unit 20656 | -2/Protoforge | Found Cep. Gyrokinetic System 20762 | -2/Protoforge | Found Exp. Jetlance 20768 | -2/Protoforge | Found Exp. Jetlance 20949 | -2/Protoforge | Build established: Mutant 21000 | -2/Protoforge | Found Faulty Cep. Zero-point Core 21001 | -2/Protoforge | Found Faulty Cep. Zero-point Core 21037 | -2/Protoforge | Spotted V362-m 21046 | -2/Protoforge | Spotted V570-p 21046 | -2/Protoforge | Found Femtoactuators 21049 | -2/Protoforge | Spotted V491-z 21049 | -2/Protoforge | Found Faulty Femtoactuators 21053 | -2/Protoforge | Found Prototype Device 21053 | -2/Protoforge | Identified Cep. Weapon Articulator 21061 | -2/Protoforge | Spotted V327-b 21109 | -2/Protoforge | Destroyed V491-z 21117 | -2/Protoforge | Destroyed V362-m 21134 | -2/Protoforge | Found Cep. Combat Aerolev Unit 21136 | -2/Protoforge | Found Cep. Combat Aerolev Unit 21186 | -2/Protoforge | Destroyed V570-p 21277 | -2/Protoforge | Destroyed Immortal 21279 | -2/Protoforge | Destroyed Immortal 21292 | -2/Protoforge | Spotted V736-k 21293 | -2/Protoforge | Spotted V211-l 21299 | -2/Protoforge | Destroyed V211-l 21312 | -2/Protoforge | Found Faulty Cep. Reaction Jets 21316 | -2/Protoforge | Found Cep. Reaction Jets 21318 | -2/Protoforge | Spotted V375-e 21361 | -2/Protoforge | Spotted AP7-3 21370 | -2/Protoforge | Destroyed AP7-3 21375 | -2/Protoforge | Spotted AP7-3 21390 | -2/Protoforge | Destroyed AP7-3 21396 | -2/Protoforge | System corruption reached 30% 21414 | -2/Protoforge | Found Cep. Core Analysis Suite 21417 | -2/Protoforge | Found Prototype Device 21417 | -2/Protoforge | Identified Cep. Cloak Mesh 21426 | -2/Protoforge | Found Cep. Cloak Mesh 21752 | -2/Protoforge | Build established: Botlord-Mutant 21976 | -2/Protoforge | Additional patrols dispatched to research labs 21979 | -2/Protoforge | Found Transdimensional Reconstructor 21985 | -2/Protoforge | Found Alien Artifact 21985 | -2/Protoforge | Identified Cep. Nanofilaments [Tensile] 21985 | -2/Protoforge | Installed Cep. Nanofilaments [Tensile], 3 resistances modified: KI +20%, TH -10%, I +20% 22155 | -2/Protoforge | Spotted Overlord 22231 | -2/Protoforge | Entered Access 22231 | -1/Access | Evolved 2 slots: Power x1, Utility x1 22642 | -1/Access | Identified exit to Command 22735 | -1/Access | Entered Command 22735 | -1/Command | Accompanied by 1 ally 23010 | -1/Command | Lost 3 allies 23082 | -1/Command | Spotted M Guard 23086 | -1/Command | Destroyed M Guard 23089 | -1/Command | Spotted M Guard 23091 | -1/Command | Spotted Combat Programmer 23096 | -1/Command | Destroyed M Guard 23098 | -1/Command | Build established: Botlord-Sprinter 23099 | -1/Command | Spotted Combat Programmer 23122 | -1/Command | Destroyed Combat Programmer 23176 | -1/Command | Destroyed Combat Programmer 23176 | -1/Command | All MAIN.C guards destroyed 23187 | -1/Command | Found AEGIS Remote Shield 23271 | -1/Command | Met MAIN.C 23289 | -1/Command | 0b10 Conduit disabled 23320 | -1/Command | Destroyed MAIN.C Shell 23322 | -1/Command | MAIN.C activated Command garrisons 23369 | -1/Command | Destroyed MAIN.C 23370 | -1/Command | Identified Subatomic Replicator 23370 | -1/Command | Discovered new exit (range 39) 23370 | -1/Command | Discovered new exit (range 92) 23370 | -1/Command | Extracted map data and part IDs from MAIN.C's data core 23375 | -1/Command | Found Zero-point Reactor 23388 | -1/Command | Spotted B-99 Colossus 23416 | -1/Command | Found Exp. System Purifier 23646 | -1/Command | Build established: Sprinter 24239 | -1/Command | Found Thermal Barrier 24552 | -1/Command | Build established: Scavenger-Sprinter 24963 | -1/Command | Found Zero-point Reactor 24965 | -1/Command | Found Exp. Force Field 25005 | -1/Command | Warped through subspace to slip node 25005 | -1/Command | Discovered new exit (range 5) 25008 | -1/Command | Found Thermal Barrier 25010 | -1/Command | Entered Access_0 25011 | -1/Access_0 | Met Architect 25019 | -1/Access_0 | Destroyed A8 25025 | -1/Access_0 | Architect warped through subspace 25062 | -1/Access_0 | Architect warped through subspace 25092 | -1/Access_0 | Subspace Access Node disabled 25097 | -1/Access_0 | Architect warped through subspace 25110 | -1/Access_0 | A6 warped into view 25116 | -1/Access_0 | Destroyed A6 25120 | -1/Access_0 | Found Corrupted Exp. Actuator Array 25140 | -1/Access_0 | Architect warped through subspace 25185 | -1/Access_0 | Architect warped through subspace 25243 | -1/Access_0 | Architect warped through subspace 25250 | -1/Access_0 | Found Prototype Device 25250 | -1/Access_0 | Identified Desublimator 25285 | -1/Access_0 | Architect warped through subspace 25312 | -1/Access_0 | Architect warped through subspace 25364 | -1/Access_0 | Architect warped through subspace 25407 | -1/Access_0 | Subspace Access Node disabled 25417 | -1/Access_0 | Architect warped through subspace 25454 | -1/Access_0 | Found Exp. Phase Shifter 25456 | -1/Access_0 | Found Exp. Phase Shifter 25457 | -1/Access_0 | Found Exp. Phase Shifter 25477 | -1/Access_0 | Architect warped through subspace 25534 | -1/Access_0 | Architect warped through subspace 25543 | -1/Access_0 | A5 warped into view 25562 | -1/Access_0 | Destroyed A5 25568 | -1/Access_0 | Architect warped through subspace 25602 | -1/Access_0 | Architect warped through subspace 25640 | -1/Access_0 | Subspace Access Node disabled 25654 | -1/Access_0 | Architect warped through subspace 25684 | -1/Access_0 | Destroyed A2 25686 | -1/Access_0 | Extracted Singularity Gate Test 138-C access codes from A2's data core 25697 | -1/Access_0 | Architect warped through subspace 25730 | -1/Access_0 | Started Test 138-B, establishing a local singularity 25730 | -1/Access_0 | Singularity Gate disabled 25731 | -1/Access_0 | A4 warped into view 25733 | -1/Access_0 | Singularity Gate disabled 25783 | -1/Access_0 | Subspace Access Node disabled 25800 | -1/Access_0 | Found Exp. Core Analyzer 25825 | -1/Access_0 | Destroyed Architect 25827 | -1/Access_0 | Extracted unknown sensor trigger ID from Architect's data core 25828 | -1/Access_0 | Found Hpw. Transdimensional Reconstructor 25834 | -1/Access_0 | Found Exp. Phase Shifter 25847 | -1/Access_0 | Found Exp. Actuator Array 25903 | -1/Access_0 | Found Sigix Corpse 26193 | -1/Access_0 | Found Exp. Phase Shifter 26205 | -1/Access_0 | A3 warped into view 26227 | -1/Access_0 | Destroyed A3 26325 | -1/Access_0 | Found Exp. Core Analyzer 26353 | -1/Access_0 | Found Hpw. Transdimensional Reconstructor 26521 | -1/Access_0 | Used Subatomic Replicator to replicate Sigix Corpse 26526 | -1/Access_0 | Warped through subspace to slip node 26526 | -1/Access_0 | Discovered new exit (range 8) 26529 | *** | Establishing 0b11! Last Messages --------------- 26480_ Enhanced Hunter destroyed. 26481_ Knocked back. 26481_ HV Slug penetrates Wall. 26482_ Acquired 1 matter. 26483_ Acquired 9 matter. 26484_ Penetrated by HV Slug. 26484_ Knocked back. 26484_ Penetrated by HV Slug. 26484_ HV Slug penetrates Wall. 26485_ Destroyed Exp. Phase Shifter. 26486_ HV Slug penetrates Wall. 26486_ Penetrated by HV Slug. 26487_ Enhanced Hunter destroyed. 26491_ Acquired 10 matter. 26519_ Dropped Sigix Corpse. 26521_ Replicated Sigix Corpse. 26522_ Acquired Sigix Corpse. 26526_ Discarded Adv. Terrain Scan Processor. 26526_ Warped through subspace, drawn to slip node. 26526_ EXIT=FOUND Map ----- +----------------------------------------------------+ | | | | | | | | | | | | | | | | | | | | | | | | | | | | | | | | | ?????????????????????????????????????????????????? | | ?????????????????????????????????????????????????? | | ?????????????????????????????????????????????????? | | ???????????????????#??????????????#????????????#?? | | ?????????????????????????????????????????????????? | | ?????????????????????????????????????????????????? | | ????????????????????????###??????????????????????? | | ???????????????????????## ##?????????????????????? | | ??????????????#????????# #?????????????????????? | | ???????????????????????# @ #?????????????????????? | | ??????????????????????## #?#???????????????????? | | ??????????????????????# #?????????????????????? | | ??????????????????????# ##?????????????????????? | | ??????????????????????## #?????????????????????? | | ??????????????????????# #?????????????????????? | | ??????????????????????# ##?????????????????????? | | ??????????????????????# < #?????????????????????? | | ??????????????????????# ##?????????????????????? | | ??????????????????????## #??????????????????????? | | ???????#???????????????####??????????????????????? | | ?????????????????????????????????????????????????? | | ?????????????????????????????????????????????????? | | ?????????????????????????????????????????????????? | | ?????????????????????????????????????????????????? | | ?????????????????????????????????????????????????? | | ?????????????????????????????????????????????????? | | ?????????????????????????????????????????????????? | | ?????????????????????????????????????????????????? | | ?????????????????????????????????????????????????? | | ?????????????????????????????????????????????????? | | ?????????????????????????????????????????????????? | | ?????????????????????????????????????????????????? | | ?????????????????????????????????????????????????? | | ?????????????????????????????????????????????????? | +----------------------------------------------------+ Best States ------------- Heat Dissipation 64 Energy Generation 83 Energy Capacity 2350 Matter Stores 1040 Matter Capacity 1050 Sight Range 23 Terrain Scan Range 24 Terrain Scan Density 1010 Jamming Range 16 Cloak Strength 9 Power Amplification 40 Additional Mass Support 25 Armor Coverage 600 Resistance: KI 20 Resistance: TH 40 Resistance: I 20 Utility Shielding 66 Melee Speed Boost 50 Phase Shifting 20 Evasion (%) 97 Targeting Accuracy 42 Melee Accuracy 5 Core Analysis 11 Recoil Reduction 4 Salvage Targeting 1 Offensive Hacking 34 Defensive Hacking 14 Relay Coupler Types 8 Relay Coupler Value 260 Authchip Count 1 Item Schematics ----------------- Cld. Linear Gravjet | -3/Quarantine | Hacked Cmb. Linear Gravjet | -2/Testing | Scanalyzed Insulated Plating | -2/Testing | Reported Cld. Proton Cannon | -2/Testing | Reported Exp. Transmission Jammer | -2/Testing | Reported Shock Maul | -2/Testing | Reported Adv. Plasma Rifle | -2/Testing | Reported Imp. Melee Analysis Suite | -2/Testing | Reported Prc. Energy Filter | -2/Testing | Reported Exp. Core Analyzer | -2/Testing | Reported Imp. Heavy Siege Treads | -2/Testing | Reported Cld. Nuclear Pulse Thruster | -2/Testing | Reported Hvy. Neutron Cannon | -2/Testing | Reported Vibroblade | -2/Testing | Reported Cld. Antigrav System | -2/Testing | Reported Adv. Micro-nuke Launcher | -2/Testing | Reported Centrium Medium Armor Plating | -2/Testing | Reported Exp. EM Disruption Field | -2/Testing | Reported Exp. Biometal Leg | -2/Testing | Reported Adv. Energy Well | -2/Testing | Reported Adv. Signal Interpreter | -2/Testing | Reported Exp. Coolant Injector | -2/Testing | Reported Plasma Lance | -2/Testing | Archive Spectral Analyzer | -2/Testing | Archive Point Singularity Launcher | -2/Protoforge | Archive Gravity Flail | -2/Protoforge | Archive Exp. Energy Well | -2/Protoforge | Archive Enh. Biometal Leg | -2/Protoforge | Archive Neutron Missile Launcher | -2/Protoforge | Archive Centrium Greatsword | -2/Protoforge | Archive Robot Schematics ------------------ A-15 Conveyor | -2/Protoforge | Archive W-44 Eye | -2/Protoforge | Archive Y-72 Warden | -2/Protoforge | Archive Fabricated ------------ L-61 Swordsman | x3 | -4/Factory | Preloaded Cld. Nuclear Pulse Thruster | x1 | -2/Testing | Authchip Repaired ---------- Adv. Beam Rifle | 24% | -8/Materials Alien Tech Used ----------------- Sigix Broadsword Concept Nanofilaments [Tensile] Transdimensional Reconstructor Subatomic Replicator High-powered Transdimensional Reconstructor Achievements -------------- Perfect Aim Challenges ------------ None Game ------ Seed CoolantTacticalDissipator Manual? 0 Play Time 06:10:53 Cumulative 833.5 hours Start 2025.07.19 @ 12:07:36 End 2025.07.20 @ 14:37:40 Sessions 5 Manual Loads 0 Difficulty Rogue Special Mode None Game No. 780 Rogue 693 Adventurer 87 Explorer 0 Win Type 1 Total 55 Types 9/3/31/2/1/1/4/1/1/2 Lore% 97 Gallery% 93 Achievement% 82 Wizard Run 0 Options --------- Layout 0 ASCII 0 Keyboard 1 Movement Numpad Keybinds 0 Fullscreen 2 Font 18/SmallcapsGlow Map View 76x50 Zoom Use 0% Tactical HUD 1 Map Filters NONE Filters NONE Steam 1 RUN: e9da3ca8-4db0-4b7b-8a18-ba38b3d7dd46